Workbook

Sheet MATRIZ DE INDICADORES
D2: MACROPROCESO ESTRATÉGICO | S2: CÓDIGO: ESGr027
D3: PROCESO GESTIÓN SISTEMAS INTEGRADOS - CALIDAD | S3: VERSIÓN: 8
D4: MATRIZ DE MEDICIÓN Y SEGUIMIENTO A LOS PROCESOS DE GESTIÓN | S4: VIGENCIA: 2023-07-28
S5: PÁGINA: 1 de 4
Q7: FECHA DE ACTUALIZACIÓN: | S7: AÑO | T7: MES | U7: DÍA
S8: 2024 | T8: 2 | U8: 27
B10: ALINEACIÓN DE LOS INDICADORES CON LOS DOCUMENTOS ESTRATÉGICOS Y LOS OBJETIVOS DE CALIDAD
B12: PROCESO GESTIÓN | C12: FRENTES DEL PLAN ESTRATÉGICO | D12: LINEAMIENTOS DE LA POLÍTICA DE CALIDAD | E12: OBJETIVOS DE CALIDAD | F12: OBJETIVO GENERAL DEL PROCESO | G12: OBJETIVOS ESPECÍFICOS | H12: NOMBRE INDICADOR | I12: FÓRMULA | J12: TIPO DE INDICADOR | K12: SEGUIMIENTO MEDICIÓN | L12: META | M12: ACTIVIDAD | N12: RESPONSABLE DE LA ACTIVIDAD | O12: ¿QUÉ RECURSOS SE REQUIEREN? | P12: FECHA EJECUCIÓN DE ACTIVIDADES | Q12: EVIDENCIA | R12: ¿CUÁNDO FINALIZARÁ? | S12: RESULTADO | T12: NIVEL OBTENIDO | U12: ACCESO
B13: Jurídica | C13: Frente Estratégico VI: Organización Universitaria inteligente con alma y corazón. | D13: Se legitima como una organización social del conocimiento y el aprendizaje que se compromete con el pensamiento basado en riesgos y el mejoramiento continuo mediante buenas prácticas administrativas y académicas en búsqueda de la acreditación de programas y la acreditación institucional, enfocándose en el bienestar de la comunidad universitaria como factor constitutivo de la vida y la libertad y la consolidación de una organización universitaria inteligente con alma y corazón. | E13: 5. Mejorar continuamente el desempeño de los procesos a través de la implementación de buenas prácticas institucionales y de la aplicación de los mecanismos dispuestos por la Universidad de Cundinamarca, para la constitución de una organización universitaria inteligente con alma y corazón. | F13: Apoyar a las diferentes dependencias de la Universidad de Cundinamarca, verificando el cumplimiento de requisitos legales para la contratación, emitiendo conceptos y representando judicial y extrajudicialmente a la Universidad de Cundinamarca, a través del estudio y aplicación permanente de la normatividad vigente con el fin de que todas las actividades realizadas por los diferentes procesos se encuentren ajustadas aL derecho. | G13: 1. Responder un 85% de todas las revisiones de las minutas y garantías de contratación directa, y un 80% a todos los requerimientos jurídicos de forma oportuna dentro de la plataforma Integradoc para el año 2024, con verificación permanente de los requisitos legales de acuerdo a la normatividad vigente y de los tiempos establecidos por la Universidad a través de seguimiento trimestral y semestral. | H13: Oportunidad de respuesta en revisión minuta y garantía de contratación Directa | I13: Número de solicitudes atendidas oportunamente *100 / Total de solicitudes cerradas | J13: EFICACIA | K13: Semestral | L13: 0.85 | M13: 1.1 Gestionar capacidad instalada (recurso humano) para la ejecución de las actividades 1.2 Establecer mediante acto administrativo tiempos de respuesta a las solicitudes referentes 1.3 Verificar y actualizar roles en Integradoc 1.4 Implementar las actividades de los procedimientos AJUP01 ASESORÍA JURÍDICA, ABSP18 SUPERVISORES E INTERVENTORES (Actividad 3) y ABSP01 ADQUISICIÓN DE BIENES, SERVICIOS U OBRAS CONTRATACIÓN DIRECTA (Actividad 16) 1.5 Evaluar mediante los indicadores establecidos | N13: 1.1 Dirección Jurídica 1.2 Secretaría General - Vicerrectoría Administrativa y Financiera 1.3 Dirección Jurídica - Integradoc 1.4 Dirección Jurídica 1.5 Dirección Jurídica | O13: 1.1 Financiero 1.2 Recurso Humano, Herramientas Ofimáticas 1.3 Recurso Humano, Herramientas Ofimáticas, Herramienta Integradoc, Conexión a internet 1.4 Recurso Humano, Herramientas Ofimáticas, Herramienta Integradoc, Conexión a internet 1.5 Recurso Humano, Información documentada | P13: 1.1 enero 2024 1.2 09/08/2021 - 03/06/2022 1.3 2024 1.4 2024 1.5 marzo / junio / septiembre / diciembre y Semestral 2024 | Q13: 1.1 Proyección presupuestal - Contratos 1.2 Circular No. 008 de 2021 - Circular No. 006 de 2022 1.3 Correos electrónicos 1.4 Registro Integradoc, Correo Electrónico Institucional 1.5 Reporte de los indicadores - Fichas técnicas | R13: 2024-12-01 | S13: 0.49 | T13: ACEPTABLE | U13: AJU-4
H14: Oportunidad en los términos de respuesta frente a los requerimientos jurídicos (Integradoc) | I14: N° solicitudes atendidas en los términos establecidos (requerimientos jurídicos por Integradoc) *100 / Total de solicitudes contestadas, allegadas como requerimientos jurídicos por Integradoc | J14: EFICACIA | K14: Trimestral | L14: 0.8 | S14: 0.74 | T14: BUENO | U14: AJU-7
G15: Dar respuesta oportuna en un 85% para el año 2024 a toda la revisión de términos de referencia y minuta de contratación Público-Privada cumpliendo los lineamientos definidos por la Universidad con un seguimiento semestral. | H15: Oportunidad de respuesta en revisión de términos de referencia y minuta de contratación Publico-Privada | I15: Número de solicitudes atendidas oportunamente * 100 / Total de solicitudes cerradas | J15: EFICACIA | K15: Semestral | L15: 0.85 | M15: 2.1 Gestionar capacidad instalada (recurso humano) para la ejecución de las actividades | N15: Dirección Jurídica | O15: Financiero | P15: 2024-01-01 | Q15: Proyección presupuestal - Contratos | R15: 2024-12-01 | S15: 0.65 | T15: ACEPTABLE | U15: AJU-5
M16: 2.2 Establecer mediante acto administrativo tiempos de respuesta a las solicitudes referentes | N16: Secretaría General - Vicerrectoría Administrativa y Financiera | O16: Recurso Humano | P16: 09/08/2021 03/06/2022 | Q16: Circular No. 008 de 2021 Circular No. 006 de 2022
M17: 2.3 Verificar y actualizar roles en Integradoc | N17: Dirección Jurídica - Integradoc | O17: Recurso Humano, Herramientas Ofimáticas, Herramienta Integradoc, Conexión a internet | P17: 2024 | Q17: Correos electrónicos
M18: 2.4 Implementar las actividades del procedimiento ABSP15 (Actividad 8 y 22) | N18: Dirección Jurídica | O18: Recurso Humano, Herramientas Ofimáticas, Herramienta Integradoc, Conexión a internet | P18: 2024 | Q18: Registro Integradoc, Correo Electrónico notificación
M19: 2.5 Evaluar mediante indicador establecido | N19: Dirección Jurídica | O19: Recurso Humano, Información documentada | P19: I y II SEMESTRE 2024 | Q19: Reporte del indicador - Ficha técnica
G20: Gestionar y hacer seguimiento en un 80% a los casos recibidos para la recuperación de cartera durante el 2024, con diligencia pertinente a los procesos judiciales. | H20: Proceso Jurídico en Recuperación de cartera | I20: Casos gestionados y con seguimiento*100/Total de casos en/para cobro jurídico (a satisfacción de criterios) Notas: Casos gestionados se entenderán como aquellos analizados y que cuenten con el cumplimiento a satisfacción de los requisitos jurídicos. Casos en seguimiento se entenderán como aquellos que se encuentran radicados ante el ente judicial competente. | J20: EFICIENCIA | K20: Semestral | L20: 0.8 | M20: 3.1 Recepcionar títulos valores por parte del área de Financiera | N20: Dirección Financiera -Dirección Jurídica | O20: Base de datos documentada, Recurso Humano, Herramientas ofimáticas | P20: 2024 | Q20: Títulos Valores, Correo Electrónico Institucional | R20: 2024-12-01 | S20: 1 | T20: EXCELENTE | U20: AJU-6
M21: 3.2 Verificar la completitud de la información de los títulos valores | N21: Dirección Jurídica | O21: Base de datos documentada, Recurso Humano, Herramientas ofimáticas | P21: 2024 | Q21: Títulos Valores, Correo Electrónico Institucional
M22: 3.3 Gestionar, aprobar y suscribir poder con las formalidades de ley, poder para representar judicialmente a la Universidad | N22: Secretaría General | O22: Títulos Valores, Recurso Humano, Herramientas ofimáticas | P22: 2024 | Q22: Correo Electrónico, y AJUr002 Poder
M23: 3.4 Implementar las actividades de los procedimientos AFIP31 FRACCIONAMIENTO DE MATRICULA Y RECUPERACIÓN DE CARTERA (Actividades 42-44) y AJUP05 REPRESENTACIÓN JUDICIAL Y ADMINISTRATIVA | N23: Dirección Jurídica | O23: Títulos Valores, Recurso Humano, Herramientas ofimáticas | P23: 2024 | Q23: Trámite judicial
M24: 3.5 Evaluar mediante indicador establecido | N24: Dirección Jurídica | O24: Recurso Humano, Información documentada | P24: I y II SEMESTRE 2024 | Q24: Reporte del indicador - Ficha técnica
G25: Adelantar las diligencias judiciales en pro de ganar mínimo el 85% de las tutelas en que la Universidad es la accionada durante el 2024, con seguimiento trimestral. | H25: Eficacia en la defensa judicial de las acciones de tutela en que la Universidad es la accionada | I25: (No. tutelas ganadas/Total tutelas accionadas archivadas) *100 | J25: EFICACIA | K25: Trimestral | L25: 0.85 | M25: 4.1 Recepcionar las tutelas | N25: Dirección Jurídica-Dependencias de la Universidad | O25: Recurso Humano, Información documentada, Herramientas Ofimáticas | P25: 2024 | Q25: Correo Electrónico | R25: 2024-12-01 | S25: 1 | T25: EXCELENTE | U25: AJU-8
M26: 4.2 Implementar las actividades del procedimiento AJUP05 (Actividad 9) | N26: Dirección Jurídica | O26: Recurso Humano, Información documentada, Herramientas Ofimáticas | P26: 2024 | Q26: Correo Electrónico, ADOr001, AJUr013
M27: 4.3 Evaluar mediante indicador establecido | N27: Dirección Jurídica | O27: Recurso Humano, Información documentada | P27: marzo / junio / septiembre / diciembre | Q27: Reporte del indicador - Ficha técnica
B40: Diagonal 18 No. 20-29 Fusagasugá – Cundinamarca Teléfono (601) 8281483 Línea Gratuita 018000180414 www.ucundinamarca.edu.co E-mail: info@ucundinamarca.edu.co NIT: 890.680.062-2
B41: Documento controlado por el Sistema de Gestión de la Calidad Asegúrese que corresponde a la última versión consultando el Portal Institucional
C58: LINEAMIENTOS DE LA POLÍTICA DE CALIDAD | D58: OBJETIVOS DE CALIDAD | E58: ALINEACIÓN DE LOS INDICADORES CON LOS DOCUMENTOS ESTRATÉGICOS Y LOS OBJETIVOS DE CALIDAD
C59: LINEAMIENTOS DE LA POLÍTICA DE SEGURIDAD Y SALUD EN EL TRABAJO | D59: OBJETIVOS DE SEGURIDAD Y SALUD EN EL TRABAJO | E59: ALINEACIÓN DE LOS INDICADORES CON LOS DOCUMENTOS ESTRATÉGICOS Y LOS OBJETIVOS DE SEGURIDAD Y SALUD EN EL TRABAJO
C60: LINEAMIENTOS DE LA POLÍTICA DE AMBIENTAL | D60: OBJETIVOS DE AMBIENTAL | E60: ALINEACIÓN DE LOS INDICADORES CON LOS DOCUMENTOS ESTRATÉGICOS Y LOS OBJETIVOS DE AMBIENTAL
C61: LINEAMIENTOS DE LA POLÍTICA DE SEGURIDAD DE LA INFORMACIÓN | D61: OBJETIVOS DE SEGURIDAD DE LA INFORMACIÓN | E61: ALINEACIÓN DE LOS INDICADORES CON LOS DOCUMENTOS ESTRATÉGICOS Y LOS OBJETIVOS DE SEGURIDAD DE LA INFORMACIÓN
C62: LINEAMIENTOS DE LA POLÍTICA DE SEGURIDAD DE ANTISOBORNO | D62: OBJETIVOS DE SEGURIDAD DE ANTISOBORNO | E62: ALINEACIÓN DE LOS INDICADORES CON LOS DOCUMENTOS ESTRATÉGICOS Y LOS OBJETIVOS DE SEGURIDAD DE ANTISOBORNO
C63: LINEAMIENTOS DE LA POLÍTICA DE LA CONCILIACIÓN DE LA VIDA PERSONAL, FAMILIAR Y LABORAL | D63: OBJETIVOS DE LA CONCILIACIÓN DE LA VIDA PERSONAL, FAMILIAR Y LABORAL | E63: ALINEACIÓN DE LOS INDICADORES CON LOS DOCUMENTOS ESTRATÉGICOS Y LOS OBJETIVOS DE LA CONCILIACIÓN DE LA VIDA PERSONAL, FAMILIAR Y LABORAL

Sheet ----1 (hidden)
B2: REGRESAR
E5: MACROPROCESO ESTRATÉGICO | M5: CÓDIGO: ESGr027
E6: PROCESO GESTIÓN SISTEMAS INTEGRADOS | M6: VERSIÓN: 7
E7: MATRIZ DE MEDICIÓN Y SEGUIMIENTO A LOS PROCESOS DE GESTIÓN | M7: VIGENCIA: 2020-03-20
M8: PÁGINA: 1 de 1
C10: FICHA DE INDICADOR
C12: MACROPROCESO | I12: NOMBRE DEL INDICADOR
C13: PROCESO GESTIÓN
C14: RESPONSABLE DE MEDICIÓN
C16: 1. COMPORTAMIENTO DE INDICADOR
C17: CLASIFICACIÓN DE LA MEDICIÓN | E17: 2 | H17: TIPO DE INDICADOR | L17: META
C18: FORMULA | L18: UNIDAD DE MEDIDA
C20: TENDENCIA | H20: NIVEL DE SEGREGACIÓN * | L20: ESCALA
L21: Deficiente | M21: Aceptable | N21: Bueno | O21: Excelente
C23: ORIGEN DE DATOS | H23: FRECUENCIA DE LA MEDICIÓN | J23: TRIMESTRAL | L23: FRECUENCIA DE RESULTADO | N23: ANUAL
C26: RESULTADOS
J27: ANÁLISIS DE DATOS Los datos indican un crecimiento en los acompañamientos entre el primer trimestre y el segundo trimestre de mas del 100%, por la contratación del personal de la oficina En el tercer trimestre se muestra un decrecimiento con respecto al periodo anterior por las vacaciones a mitad de año, las personas se reintegraron entre julio y agosto.
J34: ACCIÓN FORMULADA Reformular la meta para el próximo año dependiendo de los recursos asignados.
J41: RESPONSABLE
J42: =E14 -> 0
C45: PERIODO DE EVALUACIÓN
C46: MES | D46: =IF(J23="MENSUAL","ENERO",IF(J23="TRIMESTRAL","MARZO",IF(J23="SEMESTRAL","JUNIO",IF(J23="ANUAL",YEAR(TODAY()),"")))) -> MARZO | E46: =IF(J23="MENSUAL","FEBRERO",IF(J23="TRIMESTRAL","JUNIO",IF(J23="SEMESTRAL","DICIEMBRE",""))) -> JUNIO | F46: =IF(J23="MENSUAL","MARZO",IF(J23="TRIMESTRAL","SEPTIEMBRE","")) -> SEPTIEMBRE | G46: =IF(J23="MENSUAL","ABRIL",IF(J23="TRIMESTRAL","DICIEMBRE","")) -> DICIEMBRE | H46: =IF(J23="MENSUAL","MAYO","") ->  | I46: =IF(J23="MENSUAL","JUNIO","") ->  | J46: =IF(J23="MENSUAL","JULIO","") ->  | K46: =IF(J23="MENSUAL","AGOSTO","") ->  | L46: =IF(J23="MENSUAL","SEPTIEMBRE","") ->  | M46: =IF(J23="MENSUAL","OCTUBRE","") ->  | N46: =IF(J23="MENSUAL","NOVIEMBRE","") ->  | O46: =IF(J23="MENSUAL","DICIEMBRE","") -> 
C47: =G18 -> 0
C48: =G19 -> 0
C49: VALOR | D49: =IFERROR(IF($E$17=1,D47/D48,IF($E$17=2,D47,"")),"") -> 0 | E49: =IFERROR(IF($E$17=1,E47/E48,IF($E$17=2,E47,"")),"") -> 0 | F49: 0 | G49: 0 | H49: 0 | I49: 0 | J49: 0 | K49: 0 | L49: 0 | M49: 0 | N49: 0 | O49: 0
C50: META PONDERADA | D50: =IF(AND(N23="ANUAL",J23="MENSUAL"),N17/12,IF(AND(N23="ANUAL",J23="TRIMESTRAL"),N17/4,IF(AND(N23="ANUAL",J23="SEMESTRAL"),N17/2,IF(AND(N23="ANUAL",J23="ANUAL"),N17,IF(AND(N23="SEMESTRAL",J23="MENSUAL"),N17/6,IF(AND(N23="SEMESTRAL",J23="TRIMESTRAL"),N17/2,IF(AND(N23="SEMESTRAL",J23="SEMESTRAL"),N17,IF(AND(N23="SEMESTRAL",J23="ANUAL"),"REVISAR FRECUENCIAS",IF(AND(N23="TRIMESTRAL",J23="MENSUAL"),N17/3,IF(AND(N23="TRIMESTRAL",J23="TRIMESTRAL"),N17,IF(AND(N23="TRIMESTRAL",J23="SEMESTRAL"),"REVISAR FRECUENCIAS",IF(AND(N23="TRIMESTRAL",J23="ANUAL"),"REVISAR FRECUENCIAS",IF(AND(N23="MENSUAL",J23="MENSUAL"),N17,IF(AND(N23="MENSUAL",J23="TRIMESTRAL"),"REVISAR FRECUENCIAS",IF(AND(N23="MENSUAL",J23="SEMESTRAL"),"REVISAR FRECUENCIAS",IF(AND(N23="MENSUAL",J23="ANUAL"),"REVISAR FRECUENCIAS","")))))))))))))))) -> 0 | E50: =IF(AND(N23="ANUAL",J23="MENSUAL"),N17/12+D50,IF(AND(N23="ANUAL",J23="TRIMESTRAL"),N17/4+D50,IF(AND(N23="ANUAL",J23="SEMESTRAL"),N17/2+D50,IF(AND(N23="SEMESTRAL",J23="MENSUAL"),N17/6+D50,IF(AND(N23="SEMESTRAL",J23="TRIMESTRAL"),N17/2+D50,IF(AND(N23="SEMESTRAL",J23="SEMESTRAL"),N17,IF(AND(N23="TRIMESTRAL",J23="MENSUAL"),N17/3+D50,IF(AND(N23="TRIMESTRAL",J23="TRIMESTRAL"),N17,IF(AND(N23="MENSUAL",J23="MENSUAL"),N17,""))))))))) -> 0 | F50: =IF(AND(N23="ANUAL",J23="MENSUAL"),N17/12+E50,IF(AND(N23="ANUAL",J23="TRIMESTRAL"),N17/4+E50,IF(AND(N23="SEMESTRAL",J23="MENSUAL"),N17/6+E50,IF(AND(N23="SEMESTRAL",J23="TRIMESTRAL"),N17/2,IF(AND(N23="TRIMESTRAL",J23="MENSUAL"),N17/3+E50,IF(AND(N23="TRIMESTRAL",J23="TRIMESTRAL"),N17,IF(AND(N23="MENSUAL",J23="MENSUAL"),N17,""))))))) -> 0 | G50: =IF(AND(N23="ANUAL",J23="MENSUAL"),N17/12+F50,IF(AND(N23="ANUAL",J23="TRIMESTRAL"),N17/4+F50,IF(AND(N23="SEMESTRAL",J23="MENSUAL"),N17/6+F50,IF(AND(N23="SEMESTRAL",J23="TRIMESTRAL"),N17/2+F50,IF(AND(N23="TRIMESTRAL",J23="MENSUAL"),N17/3,IF(AND(N23="TRIMESTRAL",J23="TRIMESTRAL"),N17,IF(AND(N23="MENSUAL",J23="MENSUAL"),N17,""))))))) -> 0 | H50: =IF(AND($N$23="ANUAL",$J$23="MENSUAL"),$N$17/12+G50,IF(AND(N23="SEMESTRAL",J23="MENSUAL"),N17/6+G50,IF(AND(N23="TRIMESTRAL",J23="MENSUAL"),N17/3+G50,IF(AND(N23="MENSUAL",J23="MENSUAL"),N17,"")))) ->  | I50: =IF(AND($N$23="ANUAL",$J$23="MENSUAL"),$N$17/12+H50,IF(AND(N23="SEMESTRAL",J23="MENSUAL"),N17/6+H50,IF(AND(N23="TRIMESTRAL",J23="MENSUAL"),N17/3+H50,IF(AND(N23="MENSUAL",J23="MENSUAL"),N17,"")))) ->  | J50: =IF(AND($N$23="ANUAL",$J$23="MENSUAL"),$N$17/12+I50,IF(AND(N23="SEMESTRAL",J23="MENSUAL"),N17/6,IF(AND(N23="TRIMESTRAL",J23="MENSUAL"),N17/3,IF(AND(N23="MENSUAL",J23="MENSUAL"),N17,"")))) ->  | K50: =IF(AND($N$23="ANUAL",$J$23="MENSUAL"),$N$17/12+J50,IF(AND(N23="SEMESTRAL",J23="MENSUAL"),N17/6+J50,IF(AND(N23="TRIMESTRAL",J23="MENSUAL"),N17/3+J50,IF(AND(N23="MENSUAL",J23="MENSUAL"),N17,"")))) ->  | L50: =IF(AND($N$23="ANUAL",$J$23="MENSUAL"),$N$17/12+K50,IF(AND(N23="SEMESTRAL",J23="MENSUAL"),N17/6+K50,IF(AND(N23="TRIMESTRAL",J23="MENSUAL"),N17/3+K50,IF(AND(N23="MENSUAL",J23="MENSUAL"),N17,"")))) ->  | M50: =IF(AND($N$23="ANUAL",$J$23="MENSUAL"),$N$17/12+L50,IF(AND(N23="SEMESTRAL",J23="MENSUAL"),N17/6+L50,IF(AND(N23="TRIMESTRAL",J23="MENSUAL"),N17/3,IF(AND(N23="MENSUAL",J23="MENSUAL"),N17,"")))) ->  | N50: =IF(AND($N$23="ANUAL",$J$23="MENSUAL"),$N$17/12+M50,IF(AND(N23="SEMESTRAL",J23="MENSUAL"),N17/6+M50,IF(AND(N23="TRIMESTRAL",J23="MENSUAL"),N17/3+M50,IF(AND(N23="MENSUAL",J23="MENSUAL"),N17,"")))) ->  | O50: =IF(AND($N$23="ANUAL",$J$23="MENSUAL"),$N$17/12+N50,IF(AND(N23="SEMESTRAL",J23="MENSUAL"),N17/6+N50,IF(AND(N23="TRIMESTRAL",J23="MENSUAL"),N17/3+N50,IF(AND(N23="MENSUAL",J23="MENSUAL"),N17,"")))) -> 
C52: NIVEL DE SEGREGACIÓN *
C53: UNIDAD SEGREGADA (Ej. Facultad, Programa Académico, Área) | G53: RESULTADO | K53: ANALISIS DE DATOS SEGREGADO
G73: Estratégico | J73: Eficacia
G74: Misional | J74: Eficiencia
G75: Apoyo | J75: Acreditación
G76: Seguimiento, Medición, Análisis y Evaluación | J76: Positiva
G77: Direccionamiento Estratégico | J77: Negativa
G78: Planeación Institucional | J78: Por Unidad Regional
G79: Proyectos Especiales y Relaciones Interinstitucionales | J79: Por Facultad
G80: Sistemas Integrados | J80: Por Programa Académico
G81: Autoevaluación y Acreditación | J81: Por área
G82: Comunicaciones | J82: Por Laboratorio
G83: Formación y Aprendizaje | J83: Otros
G84: Ciencia, Tecnología e Innovación | J84: No Aplica
G85: Interacción Social Universitaria
G86: Bienestar Universitario
G87: Admisiones y Registro
G88: Graduados
G89: Dialogando con el Mundo
G90: Talento Humano
G91: Jurídica
G92: Financiera
G93: Sistemas y Tecnología
G94: Bienes y Servicios
G95: Documental
G96: Apoyo Académico
G97: Control Interno
G98: Control Disciplinario
G99: Servicio de Atención al Ciudadano

Sheet AJU-4
B2: REGRESAR
E5: MACROPROCESO ESTRATÉGICO | M5: CÓDIGO: ESGr027
E6: PROCESO GESTIÓN SISTEMAS INTEGRADOS - CALIDAD | M6: VERSIÓN: 8
E7: MATRIZ DE MEDICIÓN Y SEGUIMIENTO A LOS PROCESOS DE GESTIÓN | M7: VIGENCIA: 2023-07-28
M8: PÁGINA: 1 de 4
C10: FICHA DE INDICADOR
C12: MACROPROCESO | E12: Apoyo | I12: NOMBRE DEL INDICADOR | K12: Oportunidad de respuesta en revisión minuta y garantía de contratación Directa
C13: PROCESO GESTIÓN | E13: Jurídica
C14: RESPONSABLE DE MEDICIÓN | E14: Director(a) Jurídica
C16: 1. COMPORTAMIENTO DE INDICADOR
C17: CLASIFICACIÓN DE LA MEDICIÓN | E17: 1 | H17: TIPO DE INDICADOR | J17: Eficacia | L17: META | N17: 0.85
C18: FORMULA | E18: NUMERADOR | G18: Número de solicitudes atendidas oportunamente *100 | L18: UNIDAD DE MEDIDA | N18: Porcentaje
E19: DENOMINADOR | G19: Total de solicitudes cerradas
C20: TENDENCIA | E20: Positiva | H20: NIVEL DE SEGREGACIÓN * | J20: Otros | L20: ESCALA
L21: Deficiente | M21: Aceptable | N21: Bueno | O21: Excelente
L22: 0% - 40,9% | M22: 41% - 60,9% | N22: 61% - 84,9% | O22: >=85%
C23: ORIGEN DE DATOS NUMERADOR | E23: Data Integradoc | H23: FRECUENCIA DE LA MEDICIÓN | J23: SEMESTRAL | L23: FRECUENCIA DE RESULTADO | N23: SEMESTRAL
C24: ORIGEN DE DATOS DENOMINADOR | E24: Data Integradoc
C26: RESULTADOS
J27: ANÁLISIS DE DATOS
J28: I SEMESTRE: Se recibieron 257 solicitudes de contratación directa de las cuales 192 fueron atendidas dentro del término de respuesta, con un resultado del 75% del 85% que es la meta establecida; a nivel de escala el resultado general para este semestre es "BUENO". Respecto a la minuta se recibieron 178, de las cuales se respondieron 135 dentro del tiempo estipulado dando como resultado un 75.84%. Por otra parte, con respecto a la garantía de contratación directa se recibieron 79 solicitudes y se respondieron 57 dentro del término esperado cumpliendo con el 72.15%. II SEMESTRE: Se recibieron 663 solicitudes de contratación directa de las cuales 326 fueron atendidas dentro del término de respuesta, con un resultado del 49% que a nivel de escala el resultado general para este semestre es "ACEPTABLE". Respecto a la minuta se recibieron 353, de las cuales se respondieron 205 dentro del tiempo estipulado dando como resultado un 58,07%. Por otra parte, con respecto a la garantía de contratación directa se recibieron 310 solicitudes y se respondieron 121 dentro del término esperado cumpliendo con el 39,03%.
J34: ACCIÓN FORMULADA
J35: I SEMESTRE: Concorde con el análisis de datos, se evidencia que la dirección jurídica no cumplió con la meta establecida, por lo tanto, establece como fórmula de mejora retroalimentar durante mesas de trabajo con base a las situaciones desfavorables presentadas en este semestre con el equipo de asesores de la dirección jurídica en aras de garantizar el cumplimiento de la meta y así mismo recordarles a los abogados el tiempo de respuesta según la circular 006 de 2022. II SEMESTRE: Conforme al análisis de datos, se ha evidenciado que no se cumplió la meta propuesta. Por lo tanto, es necesario recordar a las áreas solicitantes y a los abogados (as) de la Dirección Jurídica el cumplimiento de la Circular 06 de 2022, con el fin de garantizar el desarrollo adecuado de las solicitudes dentro de los términos establecidos. Se hace especial énfasis en la importancia de remitir la documentación completa y en los plazos correspondientes, para fortalecer el proceso de correcciones y asegurar que se realicen de acuerdo con los tiempos estipulados. Adicionalmente, considerando la reciente transición de la Directora Jurídica, se reconoce que este cambio ha implicado un período de adaptación y comprensión de los procesos internos. En este sentido, se refuerza la necesidad de un esfuerzo conjunto entre el equipo de trabajo y la nueva dirección para asegurar la eficiencia en la gestión de las solicitudes.
J41: RESPONSABLE
J42: =E14 -> Director(a) Jurídica
C45: PERIODO DE EVALUACIÓN
C46: MES | D46: =IF(J23="MENSUAL","ENERO",IF(J23="TRIMESTRAL","MARZO",IF(J23="SEMESTRAL","JUNIO",IF(J23="ANUAL",YEAR(TODAY()),"")))) -> JUNIO | E46: =IF(J23="MENSUAL","FEBRERO",IF(J23="TRIMESTRAL","JUNIO",IF(J23="SEMESTRAL","DICIEMBRE",""))) -> DICIEMBRE | F46: =IF(J23="MENSUAL","MARZO",IF(J23="TRIMESTRAL","SEPTIEMBRE","")) ->  | G46: =IF(J23="MENSUAL","ABRIL",IF(J23="TRIMESTRAL","DICIEMBRE","")) ->  | H46: =IF(J23="MENSUAL","MAYO","") ->  | I46: =IF(J23="MENSUAL","JUNIO","") ->  | J46: =IF(J23="MENSUAL","JULIO","") ->  | K46: =IF(J23="MENSUAL","AGOSTO","") ->  | L46: =IF(J23="MENSUAL","SEPTIEMBRE","") ->  | M46: =IF(J23="MENSUAL","OCTUBRE","") ->  | N46: =IF(J23="MENSUAL","NOVIEMBRE","") ->  | O46: =IF(J23="MENSUAL","DICIEMBRE","") -> 
C47: =G18 -> Número de solicitudes atendidas oportunamente *100 | D47: 192 | E47: 326
C48: =G19 -> Total de solicitudes cerradas | D48: 257 | E48: 663
C49: VALOR | D49: =IFERROR(IF($E$17=1,D47/D48,IF($E$17=2,D47,"")),"") -> 0.7470817121 | E49: =IFERROR(IF($E$17=1,E47/E48,IF($E$17=2,E47,"")),"") -> 0.4917043741
C50: META PONDERADA | D50: =IF(AND(N23="ANUAL",J23="MENSUAL"),N17/12,IF(AND(N23="ANUAL",J23="TRIMESTRAL"),N17/4,IF(AND(N23="ANUAL",J23="SEMESTRAL"),N17/2,IF(AND(N23="ANUAL",J23="ANUAL"),N17,IF(AND(N23="SEMESTRAL",J23="MENSUAL"),N17/6,IF(AND(N23="SEMESTRAL",J23="TRIMESTRAL"),N17/2,IF(AND(N23="SEMESTRAL",J23="SEMESTRAL"),N17,IF(AND(N23="SEMESTRAL",J23="ANUAL"),"REVISAR FRECUENCIAS",IF(AND(N23="TRIMESTRAL",J23="MENSUAL"),N17/3,IF(AND(N23="TRIMESTRAL",J23="TRIMESTRAL"),N17,IF(AND(N23="TRIMESTRAL",J23="SEMESTRAL"),"REVISAR FRECUENCIAS",IF(AND(N23="TRIMESTRAL",J23="ANUAL"),"REVISAR FRECUENCIAS",IF(AND(N23="MENSUAL",J23="MENSUAL"),N17,IF(AND(N23="MENSUAL",J23="TRIMESTRAL"),"REVISAR FRECUENCIAS",IF(AND(N23="MENSUAL",J23="SEMESTRAL"),"REVISAR FRECUENCIAS",IF(AND(N23="MENSUAL",J23="ANUAL"),"REVISAR FRECUENCIAS","")))))))))))))))) -> 0.85 | E50: =IF(AND(N23="ANUAL",J23="MENSUAL"),N17/12+D50,IF(AND(N23="ANUAL",J23="TRIMESTRAL"),N17/4+D50,IF(AND(N23="ANUAL",J23="SEMESTRAL"),N17/2+D50,IF(AND(N23="SEMESTRAL",J23="MENSUAL"),N17/6+D50,IF(AND(N23="SEMESTRAL",J23="TRIMESTRAL"),N17/2+D50,IF(AND(N23="SEMESTRAL",J23="SEMESTRAL"),N17,IF(AND(N23="TRIMESTRAL",J23="MENSUAL"),N17/3+D50,IF(AND(N23="TRIMESTRAL",J23="TRIMESTRAL"),N17,IF(AND(N23="MENSUAL",J23="MENSUAL"),N17,""))))))))) -> 0.85 | F50: =IF(AND(N23="ANUAL",J23="MENSUAL"),N17/12+E50,IF(AND(N23="ANUAL",J23="TRIMESTRAL"),N17/4+E50,IF(AND(N23="SEMESTRAL",J23="MENSUAL"),N17/6+E50,IF(AND(N23="SEMESTRAL",J23="TRIMESTRAL"),N17/2,IF(AND(N23="TRIMESTRAL",J23="MENSUAL"),N17/3+E50,IF(AND(N23="TRIMESTRAL",J23="TRIMESTRAL"),N17,IF(AND(N23="MENSUAL",J23="MENSUAL"),N17,""))))))) ->  | G50: =IF(AND(N23="ANUAL",J23="MENSUAL"),N17/12+F50,IF(AND(N23="ANUAL",J23="TRIMESTRAL"),N17/4+F50,IF(AND(N23="SEMESTRAL",J23="MENSUAL"),N17/6+F50,IF(AND(N23="SEMESTRAL",J23="TRIMESTRAL"),N17/2+F50,IF(AND(N23="TRIMESTRAL",J23="MENSUAL"),N17/3,IF(AND(N23="TRIMESTRAL",J23="TRIMESTRAL"),N17,IF(AND(N23="MENSUAL",J23="MENSUAL"),N17,""))))))) ->  | H50: =IF(AND($N$23="ANUAL",$J$23="MENSUAL"),$N$17/12+G50,IF(AND(N23="SEMESTRAL",J23="MENSUAL"),N17/6+G50,IF(AND(N23="TRIMESTRAL",J23="MENSUAL"),N17/3+G50,IF(AND(N23="MENSUAL",J23="MENSUAL"),N17,"")))) ->  | I50: =IF(AND($N$23="ANUAL",$J$23="MENSUAL"),$N$17/12+H50,IF(AND(N23="SEMESTRAL",J23="MENSUAL"),N17/6+H50,IF(AND(N23="TRIMESTRAL",J23="MENSUAL"),N17/3+H50,IF(AND(N23="MENSUAL",J23="MENSUAL"),N17,"")))) ->  | J50: =IF(AND($N$23="ANUAL",$J$23="MENSUAL"),$N$17/12+I50,IF(AND(N23="SEMESTRAL",J23="MENSUAL"),N17/6,IF(AND(N23="TRIMESTRAL",J23="MENSUAL"),N17/3,IF(AND(N23="MENSUAL",J23="MENSUAL"),N17,"")))) ->  | K50: =IF(AND($N$23="ANUAL",$J$23="MENSUAL"),$N$17/12+J50,IF(AND(N23="SEMESTRAL",J23="MENSUAL"),N17/6+J50,IF(AND(N23="TRIMESTRAL",J23="MENSUAL"),N17/3+J50,IF(AND(N23="MENSUAL",J23="MENSUAL"),N17,"")))) ->  | L50: =IF(AND($N$23="ANUAL",$J$23="MENSUAL"),$N$17/12+K50,IF(AND(N23="SEMESTRAL",J23="MENSUAL"),N17/6+K50,IF(AND(N23="TRIMESTRAL",J23="MENSUAL"),N17/3+K50,IF(AND(N23="MENSUAL",J23="MENSUAL"),N17,"")))) ->  | M50: =IF(AND($N$23="ANUAL",$J$23="MENSUAL"),$N$17/12+L50,IF(AND(N23="SEMESTRAL",J23="MENSUAL"),N17/6+L50,IF(AND(N23="TRIMESTRAL",J23="MENSUAL"),N17/3,IF(AND(N23="MENSUAL",J23="MENSUAL"),N17,"")))) ->  | N50: =IF(AND($N$23="ANUAL",$J$23="MENSUAL"),$N$17/12+M50,IF(AND(N23="SEMESTRAL",J23="MENSUAL"),N17/6+M50,IF(AND(N23="TRIMESTRAL",J23="MENSUAL"),N17/3+M50,IF(AND(N23="MENSUAL",J23="MENSUAL"),N17,"")))) ->  | O50: =IF(AND($N$23="ANUAL",$J$23="MENSUAL"),$N$17/12+N50,IF(AND(N23="SEMESTRAL",J23="MENSUAL"),N17/6+N50,IF(AND(N23="TRIMESTRAL",J23="MENSUAL"),N17/3+N50,IF(AND(N23="MENSUAL",J23="MENSUAL"),N17,"")))) -> 
C52: NIVEL DE SEGREGACIÓN *
C53: UNIDAD SEGREGADA (Ej. Facultad, Programa Académico, Área) | G53: RESULTADO | K53: ANALISIS DE DATOS SEGREGADO
C54: MINUTA DE CONTRATACION DIRECTA | G54: =135/178 -> 0.7584269663 | K54: SE RECIBIERON 178 REQUERIMIENTOS EN CUANTO A LA MINUTA DE CONTRATACION DIRECTA,DE LOS CUALES 135 SE ATENDIERON DENTRO DE LOS TERMINOS DE RESPUESTA DEFINIDOS (I SEMESTRE)
C55: GARANTIA DE CONTRATACION DIRECTA | G55: =57/79 -> 0.7215189873 | K55: SE RECIBIERON 79 REQUERIMIENTOS EN CUANTO A LA MINUTA DE CONTRATACION DIRECTA, DE LOS CUALES 57 SE ATENDIERON DENTRO DE LOS TERMINOS DE RESPUESTA DEFINIDOS (I SEMESTRE)
C56: MINUTA DE CONTRATACION DIRECTA | G56: =205/353 -> 0.5807365439 | K56: SE RECIBIERON 353 REQUERIMIENTOS EN CUANTO A LA MINUTA DE CONTRATACION DIRECTA,DE LOS CUALES 205 SE ATENDIERON DENTRO DE LOS TERMINOS DE RESPUESTA DEFINIDOS (II SEMESTRE)
C57: GARANTIA DE CONTRATACION DIRECTA | G57: =121/310 -> 0.3903225806 | K57: SE RECIBIERON 310 REQUERIMIENTOS EN CUANTO A LA GARANTIA DE CONTRATACION DIRECTA, DE LOS CUALES 121 SE ATENDIERON DENTRO DE LOS TERMINOS DE RESPUESTA DEFINIDOS (II SEMESTRE)
G68: Estratégico | J68: Eficacia
G69: Misional | J69: Eficiencia
G70: Apoyo | J70: Acreditación
G71: Seguimiento, Medición, Análisis y Evaluación | J71: Positiva
G72: Direccionamiento Estratégico | J72: Negativa
G73: Planeación Institucional | J73: Por Unidad Regional
G74: Proyectos Especiales y Relaciones Interinstitucionales | J74: Por Facultad
G75: Sistemas Integrados | J75: Por Programa Académico
G76: Autoevaluación y Acreditación | J76: Por área
G77: Comunicaciones | J77: Por Laboratorio
G78: Formación y Aprendizaje | J78: Otros
G79: Ciencia, Tecnología e Innovación | J79: No Aplica
G80: Interacción Social Universitaria
G81: Bienestar Universitario
G82: Admisiones y Registro
G83: Graduados
G84: Dialogando con el Mundo
G85: Talento Humano
G86: Jurídica
G87: Financiera
G88: Sistemas y Tecnología
G89: Bienes y Servicios
G90: Documental
G91: Apoyo Académico
G92: Control Interno
G93: Control Disciplinario
G94: Servicio de Atención al Ciudadano

Sheet AJU-5
B2: REGRESAR
E5: MACROPROCESO ESTRATÉGICO | M5: CÓDIGO: ESGr027
E6: PROCESO GESTIÓN SISTEMAS INTEGRADOS - CALIDAD | M6: VERSIÓN: 8
E7: MATRIZ DE MEDICIÓN Y SEGUIMIENTO A LOS PROCESOS DE GESTIÓN | M7: VIGENCIA: 2023-07-28
M8: PÁGINA: 1 de 4
C10: FICHA DE INDICADOR
C12: MACROPROCESO | E12: Apoyo | I12: NOMBRE DEL INDICADOR | K12: Oportunidad de respuesta en revisión de términos de referencia y minuta de contratación Publico-Privada
C13: PROCESO GESTIÓN | E13: Jurídica
C14: RESPONSABLE DE MEDICIÓN | E14: Director(a) Jurídica
C16: 1. COMPORTAMIENTO DE INDICADOR
C17: CLASIFICACIÓN DE LA MEDICIÓN | E17: 1 | H17: TIPO DE INDICADOR | J17: Eficacia | L17: META | N17: 0.85
C18: FORMULA | E18: NUMERADOR | G18: Número de solicitudes atendidas oportunamente * 100 | L18: UNIDAD DE MEDIDA | N18: Porcentaje
E19: DENOMINADOR | G19: Total de solicitudes cerradas
C20: TENDENCIA | E20: Positiva | H20: NIVEL DE SEGREGACIÓN * | J20: Otros | L20: ESCALA
L21: Deficiente | M21: Aceptable | N21: Bueno | O21: Excelente
L22: 0% - 45,9% | M22: 46% - 65,9% | N22: 66% - 84,9% | O22: >=85%
C23: ORIGEN DE DATOS NUMERADOR | E23: Data Integradoc | H23: FRECUENCIA DE LA MEDICIÓN | J23: SEMESTRAL | L23: FRECUENCIA DE RESULTADO | N23: SEMESTRAL
C24: ORIGEN DE DATOS DENOMINADOR | E24: Data Integradoc
C26: RESULTADOS
J27: ANÁLISIS DE DATOS
J28: I SEMESTRE: Concorde con el análisis de datos, se evidencia que no se cumplió con la meta establecida, quedando en un 83% de 85% dentro de la escala de un resultado "BUENO". Se recibieron 20 solicitudes con respecto a la revisión de términos de referencia de invitación Publico-Privada de los cuales 17 se respondieron dentro del término estipulado, dando un resultado de un 85% de cumplimiento. Por otra parte, con respecto a la revisión y aprobación de la minuta, se revisaron 10 requerimientos de los cuales 8 se cumplieron dentro del término, dando el cumplimiento al 80%. II SEMESTRE: Concorde con el análisis de datos, se evidencia que se cumplió con la meta establecida, quedando en un 46% de 65,9% dentro de la escala de un resultado "ACEPTABLE". Se recibieron 38 solicitudes con respecto a la revisión de términos de referencia de invitación Publico-Privada de los cuales 25 se respondieron dentro del término estipulado, dando un resultado de un 66% de cumplimiento. Por otra parte, con respecto a la revisión y aprobación de la minuta, se revisaron 31 requerimientos de los cuales 20 se cumplieron dentro del término, dando el cumplimiento al 65%.
J34: ACCIÓN FORMULADA
J35: I SEMESTRE: Teniendo en cuenta que no se cumplió con la meta establecida, la dirección jurídica establece como estrategias para el mejoramiento en la medición del indicador para el siguiente semestre llevar a cabo mesas de trabajo en las cuales se expondrán las situaciones presentadas con tiempos extemporáneos para así solicitar el apoyo de las otras áreas y poder cumplir con la meta establecida y lo estipulado en la circular 006 de 2022. II SEMESTRE: Conforme al análisis de datos, se ha evidenciado que no se cumplió la meta propuesta. Por lo tanto, es necesario recordar a las áreas solicitantes y a los abogados (as) de la Dirección Jurídica el cumplimiento de la Circular 08 de 2021, con el fin de garantizar el desarrollo adecuado de las solicitudes dentro de los términos establecidos. Se hace especial énfasis en la importancia de remitir la documentación completa y en los plazos correspondientes, para fortalecer el proceso de correcciones y asegurar que se realicen de acuerdo con los tiempos estipulados. Adicionalmente, considerando la reciente transición de la Directora Jurídica, se reconoce que este cambio ha implicado un período de adaptación y comprensión de los procesos internos. En este sentido, se refuerza la necesidad de un esfuerzo conjunto entre el equipo de trabajo y la nueva dirección para asegurar la eficiencia en la gestión de las solicitudes.
J41: RESPONSABLE
J42: =E14 -> Director(a) Jurídica
C45: PERIODO DE EVALUACIÓN
C46: MES | D46: =IF(J23="MENSUAL","ENERO",IF(J23="TRIMESTRAL","MARZO",IF(J23="SEMESTRAL","JUNIO",IF(J23="ANUAL",YEAR(TODAY()),"")))) -> JUNIO | E46: =IF(J23="MENSUAL","FEBRERO",IF(J23="TRIMESTRAL","JUNIO",IF(J23="SEMESTRAL","DICIEMBRE",""))) -> DICIEMBRE | F46: =IF(J23="MENSUAL","MARZO",IF(J23="TRIMESTRAL","SEPTIEMBRE","")) ->  | G46: =IF(J23="MENSUAL","ABRIL",IF(J23="TRIMESTRAL","DICIEMBRE","")) ->  | H46: =IF(J23="MENSUAL","MAYO","") ->  | I46: =IF(J23="MENSUAL","JUNIO","") ->  | J46: =IF(J23="MENSUAL","JULIO","") ->  | K46: =IF(J23="MENSUAL","AGOSTO","") ->  | L46: =IF(J23="MENSUAL","SEPTIEMBRE","") ->  | M46: =IF(J23="MENSUAL","OCTUBRE","") ->  | N46: =IF(J23="MENSUAL","NOVIEMBRE","") ->  | O46: =IF(J23="MENSUAL","DICIEMBRE","") -> 
C47: =G18 -> Número de solicitudes atendidas oportunamente * 100 | D47: 25 | E47: 45
C48: =G19 -> Total de solicitudes cerradas | D48: 30 | E48: 69
C49: VALOR | D49: =IFERROR(IF($E$17=1,D47/D48,IF($E$17=2,D47,"")),"") -> 0.8333333333 | E49: =IFERROR(IF($E$17=1,E47/E48,IF($E$17=2,E47,"")),"") -> 0.652173913 | F49: =IFERROR(IF($E$17=1,F47/F48,IF($E$17=2,F47,"")),"") -> 
C50: META PONDERADA | D50: =IF(AND(N23="ANUAL",J23="MENSUAL"),N17/12,IF(AND(N23="ANUAL",J23="TRIMESTRAL"),N17/4,IF(AND(N23="ANUAL",J23="SEMESTRAL"),N17/2,IF(AND(N23="ANUAL",J23="ANUAL"),N17,IF(AND(N23="SEMESTRAL",J23="MENSUAL"),N17/6,IF(AND(N23="SEMESTRAL",J23="TRIMESTRAL"),N17/2,IF(AND(N23="SEMESTRAL",J23="SEMESTRAL"),N17,IF(AND(N23="SEMESTRAL",J23="ANUAL"),"REVISAR FRECUENCIAS",IF(AND(N23="TRIMESTRAL",J23="MENSUAL"),N17/3,IF(AND(N23="TRIMESTRAL",J23="TRIMESTRAL"),N17,IF(AND(N23="TRIMESTRAL",J23="SEMESTRAL"),"REVISAR FRECUENCIAS",IF(AND(N23="TRIMESTRAL",J23="ANUAL"),"REVISAR FRECUENCIAS",IF(AND(N23="MENSUAL",J23="MENSUAL"),N17,IF(AND(N23="MENSUAL",J23="TRIMESTRAL"),"REVISAR FRECUENCIAS",IF(AND(N23="MENSUAL",J23="SEMESTRAL"),"REVISAR FRECUENCIAS",IF(AND(N23="MENSUAL",J23="ANUAL"),"REVISAR FRECUENCIAS","")))))))))))))))) -> 0.85 | E50: =IF(AND(N23="ANUAL",J23="MENSUAL"),N17/12+D50,IF(AND(N23="ANUAL",J23="TRIMESTRAL"),N17/4+D50,IF(AND(N23="ANUAL",J23="SEMESTRAL"),N17/2+D50,IF(AND(N23="SEMESTRAL",J23="MENSUAL"),N17/6+D50,IF(AND(N23="SEMESTRAL",J23="TRIMESTRAL"),N17/2+D50,IF(AND(N23="SEMESTRAL",J23="SEMESTRAL"),N17,IF(AND(N23="TRIMESTRAL",J23="MENSUAL"),N17/3+D50,IF(AND(N23="TRIMESTRAL",J23="TRIMESTRAL"),N17,IF(AND(N23="MENSUAL",J23="MENSUAL"),N17,""))))))))) -> 0.85 | F50: =IF(AND(N23="ANUAL",J23="MENSUAL"),N17/12+E50,IF(AND(N23="ANUAL",J23="TRIMESTRAL"),N17/4+E50,IF(AND(N23="SEMESTRAL",J23="MENSUAL"),N17/6+E50,IF(AND(N23="SEMESTRAL",J23="TRIMESTRAL"),N17/2,IF(AND(N23="TRIMESTRAL",J23="MENSUAL"),N17/3+E50,IF(AND(N23="TRIMESTRAL",J23="TRIMESTRAL"),N17,IF(AND(N23="MENSUAL",J23="MENSUAL"),N17,""))))))) ->  | G50: =IF(AND(N23="ANUAL",J23="MENSUAL"),N17/12+F50,IF(AND(N23="ANUAL",J23="TRIMESTRAL"),N17/4+F50,IF(AND(N23="SEMESTRAL",J23="MENSUAL"),N17/6+F50,IF(AND(N23="SEMESTRAL",J23="TRIMESTRAL"),N17/2+F50,IF(AND(N23="TRIMESTRAL",J23="MENSUAL"),N17/3,IF(AND(N23="TRIMESTRAL",J23="TRIMESTRAL"),N17,IF(AND(N23="MENSUAL",J23="MENSUAL"),N17,""))))))) ->  | H50: =IF(AND($N$23="ANUAL",$J$23="MENSUAL"),$N$17/12+G50,IF(AND(N23="SEMESTRAL",J23="MENSUAL"),N17/6+G50,IF(AND(N23="TRIMESTRAL",J23="MENSUAL"),N17/3+G50,IF(AND(N23="MENSUAL",J23="MENSUAL"),N17,"")))) ->  | I50: =IF(AND($N$23="ANUAL",$J$23="MENSUAL"),$N$17/12+H50,IF(AND(N23="SEMESTRAL",J23="MENSUAL"),N17/6+H50,IF(AND(N23="TRIMESTRAL",J23="MENSUAL"),N17/3+H50,IF(AND(N23="MENSUAL",J23="MENSUAL"),N17,"")))) ->  | J50: =IF(AND($N$23="ANUAL",$J$23="MENSUAL"),$N$17/12+I50,IF(AND(N23="SEMESTRAL",J23="MENSUAL"),N17/6,IF(AND(N23="TRIMESTRAL",J23="MENSUAL"),N17/3,IF(AND(N23="MENSUAL",J23="MENSUAL"),N17,"")))) ->  | K50: =IF(AND($N$23="ANUAL",$J$23="MENSUAL"),$N$17/12+J50,IF(AND(N23="SEMESTRAL",J23="MENSUAL"),N17/6+J50,IF(AND(N23="TRIMESTRAL",J23="MENSUAL"),N17/3+J50,IF(AND(N23="MENSUAL",J23="MENSUAL"),N17,"")))) ->  | L50: =IF(AND($N$23="ANUAL",$J$23="MENSUAL"),$N$17/12+K50,IF(AND(N23="SEMESTRAL",J23="MENSUAL"),N17/6+K50,IF(AND(N23="TRIMESTRAL",J23="MENSUAL"),N17/3+K50,IF(AND(N23="MENSUAL",J23="MENSUAL"),N17,"")))) ->  | M50: =IF(AND($N$23="ANUAL",$J$23="MENSUAL"),$N$17/12+L50,IF(AND(N23="SEMESTRAL",J23="MENSUAL"),N17/6+L50,IF(AND(N23="TRIMESTRAL",J23="MENSUAL"),N17/3,IF(AND(N23="MENSUAL",J23="MENSUAL"),N17,"")))) ->  | N50: =IF(AND($N$23="ANUAL",$J$23="MENSUAL"),$N$17/12+M50,IF(AND(N23="SEMESTRAL",J23="MENSUAL"),N17/6+M50,IF(AND(N23="TRIMESTRAL",J23="MENSUAL"),N17/3+M50,IF(AND(N23="MENSUAL",J23="MENSUAL"),N17,"")))) ->  | O50: =IF(AND($N$23="ANUAL",$J$23="MENSUAL"),$N$17/12+N50,IF(AND(N23="SEMESTRAL",J23="MENSUAL"),N17/6+N50,IF(AND(N23="TRIMESTRAL",J23="MENSUAL"),N17/3+N50,IF(AND(N23="MENSUAL",J23="MENSUAL"),N17,"")))) -> 
C52: NIVEL DE SEGREGACIÓN *
C53: UNIDAD SEGREGADA (Ej. Facultad, Programa Académico, Área) | G53: RESULTADO | K53: ANALISIS DE DATOS SEGREGADO
C54: REVISAR TÉRMINOS DE REFERENCIA INVITACIÓN PÚBLICA / PRIVADA | G54: =17/20 -> 0.85 | K54: SE RECIBIERON 20 REQUERIMIENTOS EN CUANTO A REVISAR TÉRMINOS DE REFERENCIA INVITACIÓN PÚBLICA / PRIVADA, DE LOS CUALES 17 SE ATENDIERON DENTRO DE LOS TERMINOS DE RESPUESTA DEFINIDOS (I SEMESTRE)
C55: REVISION DE LA MINUTA (INVITACION PUBLICA / PRIVADA) | G55: =8/10 -> 0.8 | K55: SE RECIBIERON 10 REQUERIMIENTOS EN CUANTO REVISION DE LA MINUTA (INVITACION PUBLICA / PRIVADA) DE LOS CUALES 8 SE ATENDIERON DENTRO DE LOS TERMINOS DE RESPUESTA DEFINIDOS (I SEMESTRE)
C56: REVISAR TÉRMINOS DE REFERENCIA INVITACIÓN PÚBLICA / PRIVADA | G56: =25/38 -> 0.6578947368 | K56: SE RECIBIERON 38 REQUERIMIENTOS EN CUANTO A TÉRMINOS DE REFERENCIA INVITACIÓN PÚBLICA / PRIVADA, DE LOS CUALES 25 SE ATENDIERON DENTRO DE LOS TERMINOS DE RESPUESTA DEFINIDOS (II SEMESTRE)
C57: REVISION DE LA MINUTA (INVITACION PUBLICA / PRIVADA) | G57: =20/31 -> 0.6451612903 | K57: SE RECIBIERON 31 REQUERIMIENTOS EN CUANTO REVISION DE LA MINUTA (INVITACION PUBLICA / PRIVADA) DE LOS CUALES 20 SE ATENDIERON DENTRO DE LOS TERMINOS DE RESPUESTA DEFINIDOS (II SEMESTRE)
G68: Estratégico | J68: Eficacia
G69: Misional | J69: Eficiencia
G70: Apoyo | J70: Acreditación
G71: Seguimiento, Medición, Análisis y Evaluación | J71: Positiva
G72: Direccionamiento Estratégico | J72: Negativa
G73: Planeación Institucional | J73: Por Unidad Regional
G74: Proyectos Especiales y Relaciones Interinstitucionales | J74: Por Facultad
G75: Sistemas Integrados | J75: Por Programa Académico
G76: Autoevaluación y Acreditación | J76: Por área
G77: Comunicaciones | J77: Por Laboratorio
G78: Formación y Aprendizaje | J78: Otros
G79: Ciencia, Tecnología e Innovación | J79: No Aplica
G80: Interacción Social Universitaria
G81: Bienestar Universitario
G82: Admisiones y Registro
G83: Graduados
G84: Dialogando con el Mundo
G85: Talento Humano
G86: Jurídica
G87: Financiera
G88: Sistemas y Tecnología
G89: Bienes y Servicios
G90: Documental
G91: Apoyo Académico
G92: Control Interno
G93: Control Disciplinario
G94: Servicio de Atención al Ciudadano

Sheet AJU-6
B2: REGRESAR
E5: MACROPROCESO ESTRATÉGICO | M5: CÓDIGO: ESGr027
E6: PROCESO GESTIÓN SISTEMAS INTEGRADOS - CALIDAD | M6: VERSIÓN: 8
E7: MATRIZ DE MEDICIÓN Y SEGUIMIENTO A LOS PROCESOS DE GESTIÓN | M7: VIGENCIA: 2023-07-28
M8: PÁGINA: 1 de 4
C10: FICHA DE INDICADOR
C12: MACROPROCESO | E12: Apoyo | I12: NOMBRE DEL INDICADOR | K12: Proceso jurídico en recuperación de cartera
C13: PROCESO GESTIÓN | E13: Jurídica
C14: RESPONSABLE DE MEDICIÓN | E14: Director(a) Jurídica
C16: 1. COMPORTAMIENTO DE INDICADOR
C17: CLASIFICACIÓN DE LA MEDICIÓN | E17: 1 | H17: TIPO DE INDICADOR | J17: Eficiencia | L17: META | N17: 0.8
C18: FORMULA | E18: NUMERADOR | G18: Casos gestionados y con seguimiento*100 | L18: UNIDAD DE MEDIDA | N18: Porcentaje
E19: DENOMINADOR | G19: Total de casos en/para cobro jurídico (a satisfacción de criterios)
C20: TENDENCIA | E20: Positiva | H20: NIVEL DE SEGREGACIÓN * | J20: No Aplica | L20: ESCALA
L21: Deficiente | M21: Aceptable | N21: Bueno | O21: Excelente
L22: 0% - 39,9% | M22: 40% - 59,9% | N22: 60% - 79,9% | O22: >=80%
C23: ORIGEN DE DATOS NUMERADOR | E23: Documento en Excel - AJUF008 | H23: FRECUENCIA DE LA MEDICIÓN | J23: SEMESTRAL | L23: FRECUENCIA DE RESULTADO | N23: SEMESTRAL
C24: ORIGEN DE DATOS DENOMINADOR | E24: Documento en Excel - AJUF008
C26: RESULTADOS
J27: ANÁLISIS DE DATOS
J28: I SEMESTRE: SEGÚN LOS DATOS ANALIZADOS EXISTEN ACTUALMENTE 23 CASOS PARA COBRO JURIDICO, AL TOTAL DE CASOS SE LES HA REALIZADO EL SEGUIMIENTO CONTINUO A LOS PROCESOS TAL COMO LO INDICA LA DATA, GENERANDO UN CUMPLIMIENTO DEL 100% SUPERANDO ASI LA META PONDERADA (80%). II SEMESTRE: SEGÚN LOS DATOS ANALIZADOS EXISTEN ACTUALMENTE 22 CASOS PARA COBRO JURIDICO, DEBIDO QUE PARA ESTE SEGUNO SEMESTRE SE RECUADO EL PAGO DE UNA SANCION DE UN PROCESO EJECUTIVO. AL TOTAL DE CASOS SE LES HA REALIZADO EL SEGUIMIENTO CONTINUO A LOS PROCESOS TAL COMO LO INDICA LA DATA, GENERANDO UN CUMPLIMIENTO DEL 100% SUPERANDO ASI LA META PONDERADA (80%).
J34: ACCIÓN FORMULADA
J35: I SEMESTRE: SEGÚN LOS RESULTADOS OBTENIDOS ESTE SEMESTRE (100%), SE LES SEGUIRÁ RECORDANDO A LOS ABOGADOS ENCARGADOS DE LOS PROCESOS EN MENCION; DAR LA DEBIDA CELERIDAD Y SEGUIMIENTO A LOS PROCESOS CON COBRO JURIDICO EN ARAS DE FORTALECER Y DAR CUMPLIMIENTO A ESTE INDICADOR. II SEMESTRE: SEGÚN LOS RESULTADOS OBTENIDOS ESTE SEMESTRE (100%), SE SOLICITARÁ A LOS ASESORES JURIDICOS ENCARGADOS EL SEGUIMIENTO A ESTOS PROCESOS Y DAR LA DEBIDA CELERIDAD Y SEGUIMIENTO A LOS PROCESOS CON COBRO JURIDICO EN ARAS DE FORTALECER Y DAR CUMPLIMIENTO A ESTE INDICADOR.
J41: RESPONSABLE
J42: =E14 -> Director(a) Jurídica
C45: PERIODO DE EVALUACIÓN
C46: MES | D46: =IF(J23="MENSUAL","ENERO",IF(J23="TRIMESTRAL","MARZO",IF(J23="SEMESTRAL","JUNIO",IF(J23="ANUAL",YEAR(TODAY()),"")))) -> JUNIO | E46: =IF(J23="MENSUAL","FEBRERO",IF(J23="TRIMESTRAL","JUNIO",IF(J23="SEMESTRAL","DICIEMBRE",""))) -> DICIEMBRE | F46: =IF(J23="MENSUAL","MARZO",IF(J23="TRIMESTRAL","SEPTIEMBRE","")) ->  | G46: =IF(J23="MENSUAL","ABRIL",IF(J23="TRIMESTRAL","DICIEMBRE","")) ->  | H46: =IF(J23="MENSUAL","MAYO","") ->  | I46: =IF(J23="MENSUAL","JUNIO","") ->  | J46: =IF(J23="MENSUAL","JULIO","") ->  | K46: =IF(J23="MENSUAL","AGOSTO","") ->  | L46: =IF(J23="MENSUAL","SEPTIEMBRE","") ->  | M46: =IF(J23="MENSUAL","OCTUBRE","") ->  | N46: =IF(J23="MENSUAL","NOVIEMBRE","") ->  | O46: =IF(J23="MENSUAL","DICIEMBRE","") -> 
C47: =G18 -> Casos gestionados y con seguimiento*100 | D47: 23 | E47: 22
C48: =G19 -> Total de casos en/para cobro jurídico (a satisfacción de criterios) | D48: 23 | E48: 22
C49: VALOR | D49: =D47/D48 -> 1 | E49: =E47/E48 -> 1 | F49: =IFERROR(IF($E$17=1,F47/F48,IF($E$17=2,F47,"")),"") -> 
C50: META PONDERADA | D50: =IF(AND(N23="ANUAL",J23="MENSUAL"),N17/12,IF(AND(N23="ANUAL",J23="TRIMESTRAL"),N17/4,IF(AND(N23="ANUAL",J23="SEMESTRAL"),N17/2,IF(AND(N23="ANUAL",J23="ANUAL"),N17,IF(AND(N23="SEMESTRAL",J23="MENSUAL"),N17/6,IF(AND(N23="SEMESTRAL",J23="TRIMESTRAL"),N17/2,IF(AND(N23="SEMESTRAL",J23="SEMESTRAL"),N17,IF(AND(N23="SEMESTRAL",J23="ANUAL"),"REVISAR FRECUENCIAS",IF(AND(N23="TRIMESTRAL",J23="MENSUAL"),N17/3,IF(AND(N23="TRIMESTRAL",J23="TRIMESTRAL"),N17,IF(AND(N23="TRIMESTRAL",J23="SEMESTRAL"),"REVISAR FRECUENCIAS",IF(AND(N23="TRIMESTRAL",J23="ANUAL"),"REVISAR FRECUENCIAS",IF(AND(N23="MENSUAL",J23="MENSUAL"),N17,IF(AND(N23="MENSUAL",J23="TRIMESTRAL"),"REVISAR FRECUENCIAS",IF(AND(N23="MENSUAL",J23="SEMESTRAL"),"REVISAR FRECUENCIAS",IF(AND(N23="MENSUAL",J23="ANUAL"),"REVISAR FRECUENCIAS","")))))))))))))))) -> 0.8 | E50: =IF(AND(N23="ANUAL",J23="MENSUAL"),N17/12+D50,IF(AND(N23="ANUAL",J23="TRIMESTRAL"),N17/4+D50,IF(AND(N23="ANUAL",J23="SEMESTRAL"),N17/2+D50,IF(AND(N23="SEMESTRAL",J23="MENSUAL"),N17/6+D50,IF(AND(N23="SEMESTRAL",J23="TRIMESTRAL"),N17/2+D50,IF(AND(N23="SEMESTRAL",J23="SEMESTRAL"),N17,IF(AND(N23="TRIMESTRAL",J23="MENSUAL"),N17/3+D50,IF(AND(N23="TRIMESTRAL",J23="TRIMESTRAL"),N17,IF(AND(N23="MENSUAL",J23="MENSUAL"),N17,""))))))))) -> 0.8 | F50: =IF(AND(N23="ANUAL",J23="MENSUAL"),N17/12+E50,IF(AND(N23="ANUAL",J23="TRIMESTRAL"),N17/4+E50,IF(AND(N23="SEMESTRAL",J23="MENSUAL"),N17/6+E50,IF(AND(N23="SEMESTRAL",J23="TRIMESTRAL"),N17/2,IF(AND(N23="TRIMESTRAL",J23="MENSUAL"),N17/3+E50,IF(AND(N23="TRIMESTRAL",J23="TRIMESTRAL"),N17,IF(AND(N23="MENSUAL",J23="MENSUAL"),N17,""))))))) ->  | G50: =IF(AND(N23="ANUAL",J23="MENSUAL"),N17/12+F50,IF(AND(N23="ANUAL",J23="TRIMESTRAL"),N17/4+F50,IF(AND(N23="SEMESTRAL",J23="MENSUAL"),N17/6+F50,IF(AND(N23="SEMESTRAL",J23="TRIMESTRAL"),N17/2+F50,IF(AND(N23="TRIMESTRAL",J23="MENSUAL"),N17/3,IF(AND(N23="TRIMESTRAL",J23="TRIMESTRAL"),N17,IF(AND(N23="MENSUAL",J23="MENSUAL"),N17,""))))))) ->  | H50: =IF(AND($N$23="ANUAL",$J$23="MENSUAL"),$N$17/12+G50,IF(AND(N23="SEMESTRAL",J23="MENSUAL"),N17/6+G50,IF(AND(N23="TRIMESTRAL",J23="MENSUAL"),N17/3+G50,IF(AND(N23="MENSUAL",J23="MENSUAL"),N17,"")))) ->  | I50: =IF(AND($N$23="ANUAL",$J$23="MENSUAL"),$N$17/12+H50,IF(AND(N23="SEMESTRAL",J23="MENSUAL"),N17/6+H50,IF(AND(N23="TRIMESTRAL",J23="MENSUAL"),N17/3+H50,IF(AND(N23="MENSUAL",J23="MENSUAL"),N17,"")))) ->  | J50: =IF(AND($N$23="ANUAL",$J$23="MENSUAL"),$N$17/12+I50,IF(AND(N23="SEMESTRAL",J23="MENSUAL"),N17/6,IF(AND(N23="TRIMESTRAL",J23="MENSUAL"),N17/3,IF(AND(N23="MENSUAL",J23="MENSUAL"),N17,"")))) ->  | K50: =IF(AND($N$23="ANUAL",$J$23="MENSUAL"),$N$17/12+J50,IF(AND(N23="SEMESTRAL",J23="MENSUAL"),N17/6+J50,IF(AND(N23="TRIMESTRAL",J23="MENSUAL"),N17/3+J50,IF(AND(N23="MENSUAL",J23="MENSUAL"),N17,"")))) ->  | L50: =IF(AND($N$23="ANUAL",$J$23="MENSUAL"),$N$17/12+K50,IF(AND(N23="SEMESTRAL",J23="MENSUAL"),N17/6+K50,IF(AND(N23="TRIMESTRAL",J23="MENSUAL"),N17/3+K50,IF(AND(N23="MENSUAL",J23="MENSUAL"),N17,"")))) ->  | M50: =IF(AND($N$23="ANUAL",$J$23="MENSUAL"),$N$17/12+L50,IF(AND(N23="SEMESTRAL",J23="MENSUAL"),N17/6+L50,IF(AND(N23="TRIMESTRAL",J23="MENSUAL"),N17/3,IF(AND(N23="MENSUAL",J23="MENSUAL"),N17,"")))) ->  | N50: =IF(AND($N$23="ANUAL",$J$23="MENSUAL"),$N$17/12+M50,IF(AND(N23="SEMESTRAL",J23="MENSUAL"),N17/6+M50,IF(AND(N23="TRIMESTRAL",J23="MENSUAL"),N17/3+M50,IF(AND(N23="MENSUAL",J23="MENSUAL"),N17,"")))) ->  | O50: =IF(AND($N$23="ANUAL",$J$23="MENSUAL"),$N$17/12+N50,IF(AND(N23="SEMESTRAL",J23="MENSUAL"),N17/6+N50,IF(AND(N23="TRIMESTRAL",J23="MENSUAL"),N17/3+N50,IF(AND(N23="MENSUAL",J23="MENSUAL"),N17,"")))) -> 
C52: NIVEL DE SEGREGACIÓN *
C53: UNIDAD SEGREGADA (Ej. Facultad, Programa Académico, Área) | G53: RESULTADO | K53: ANALISIS DE DATOS SEGREGADO
C54: CASOS EN SEGUIMIENTO JURÍDICO | G54: 22 | K54: Se observa que los 22 procesos que reposan en la dirección jurídica para cobro jurídico se les realizo un seguimiento en los ultimos seis meses del año 2024
C55: CASOS GESTIONADOS | G55: 1 | K55: Se observa 1 proceso gestionado para cobro jurídico ante el juzgado en los ultimos seis meses del año 2024
G67: Estratégico | J67: Eficacia
G68: Misional | J68: Eficiencia
G69: Apoyo | J69: Acreditación
G70: Seguimiento, Medición, Análisis y Evaluación | J70: Positiva
G71: Direccionamiento Estratégico | J71: Negativa
G72: Planeación Institucional | J72: Por Unidad Regional
G73: Proyectos Especiales y Relaciones Interinstitucionales | J73: Por Facultad
G74: Sistemas Integrados | J74: Por Programa Académico
G75: Autoevaluación y Acreditación | J75: Por área
G76: Comunicaciones | J76: Por Laboratorio
G77: Formación y Aprendizaje | J77: Otros
G78: Ciencia, Tecnología e Innovación | J78: No Aplica
G79: Interacción Social Universitaria
G80: Bienestar Universitario
G81: Admisiones y Registro
G82: Graduados
G83: Dialogando con el Mundo
G84: Talento Humano
G85: Jurídica
G86: Financiera
G87: Sistemas y Tecnología
G88: Bienes y Servicios
G89: Documental
G90: Apoyo Académico
G91: Control Interno
G92: Control Disciplinario
G93: Servicio de Atención al Ciudadano

Sheet AJU-7
B2: REGRESAR
E5: MACROPROCESO ESTRATÉGICO | M5: CÓDIGO: ESGr027
E6: PROCESO GESTIÓN SISTEMAS INTEGRADOS - CALIDAD | M6: VERSIÓN: 8
E7: MATRIZ DE MEDICIÓN Y SEGUIMIENTO A LOS PROCESOS DE GESTIÓN | M7: VIGENCIA: 2023-07-28
M8: PÁGINA: 1 de 4
C10: FICHA DE INDICADOR
C12: MACROPROCESO | E12: Apoyo | I12: NOMBRE DEL INDICADOR | K12: Oportunidad en los términos de respuesta frente a los requerimientos jurídicos (Integradoc)
C13: PROCESO GESTIÓN | E13: Jurídica
C14: RESPONSABLE DE MEDICIÓN | E14: Director(a) Jurídica
C16: 1. COMPORTAMIENTO DE INDICADOR
C17: CLASIFICACIÓN DE LA MEDICIÓN | E17: 1 | H17: TIPO DE INDICADOR | J17: Eficacia | L17: META | N17: 0.8
C18: FORMULA | E18: NUMERADOR | G18: N° solicitudes atendidas en los términos establecidos (requerimientos jurídicos por Integradoc) *100 | L18: UNIDAD DE MEDIDA | N18: Porcentaje
E19: DENOMINADOR | G19: Total de solicitudes contestadas, allegadas como requerimientos jurídicos por Integradoc
C20: TENDENCIA | E20: Positiva | H20: NIVEL DE SEGREGACIÓN * | J20: Otros | L20: ESCALA
L21: Deficiente | M21: Aceptable | N21: Bueno | O21: Excelente
L22: 0% - 40,9% | M22: 41% - 60,9% | N22: 61% - 79,9% | O22: >=80%
C23: ORIGEN DE DATOS NUMERADOR | E23: Data Integradoc | H23: FRECUENCIA DE LA MEDICIÓN | J23: TRIMESTRAL | L23: FRECUENCIA DE RESULTADO | N23: TRIMESTRAL
C24: ORIGEN DE DATOS DENOMINADOR | E24: Data Integradoc
C26: RESULTADOS
J27: ANÁLISIS DE DATOS
J28: I TRIMESTRE: Se recibieron 5 requerimientos juridicos de los cuales se cumplieron dentro del termino estipulado para cada uno de las solicitudes, Se debe tener en cuenta que se medio bajo la normatividad de los días señalados para cada revisión teniendo en cuenta fecha calendario, además del historico enviado por integradoc (Circular 008-2021) II TRIMESTRE: De los datos objeto análisis, se puede concluir que, durante el segundo trimestre del 2024, en la dirección jurídica no se cumpliò la meta establecida quedando en un 67% de 80% cmo resultado en la escala "BUENO". Se recibierón un total de 9 requerimientos jurídicos de los cuales 6 fueron atendidos dentro de los términos establecidos. III TRIMESTRE: Se recibieron 6 requerimientos jurídicos de los cuales 1 se cumplieron dentro del término estipulado para cada una de las solicitudes, y 5 no cumplen dentro del término, dando de esta manera un resultado de cumplimiento de 17%; así mismo se evidencia que algunos de los asuntos relacionados fueron tramitados simultáneamente por correo electrónico, lo que genera un desgaste administrativo y duplicidad de los asuntos. IV TRIMESTRE: Durante el IV Trimestre, se recibieron 23 requerimientos jurídicos, de los cuales 17 se atendieron oportunamente, lo que representa un cumplimiento del 74%.que a nivel de escala el resultado general para este semestre es "BUENO"., no se alcanza a cumplir la meta faltante del 6% teniendo en cuenta que algunas solicitudes devueltas no allega a tiempo la documentacion solicitada Se debe tener en cuenta que se medio bajo la normatividad de los días señalados para cada revisión teniendo en cuenta fecha calendario, además del historico enviado por integradoc (Circular 008-2021)
J34: ACCIÓN FORMULADA
J35: I TRIMESTRE: Concorde con el análisis de datos, se evidencia que se cumplio la meta propuesta, pero es indispensable fomentar a los abogados (as) nuevos de la Dirección Jurídica, el cumplimiento de la Circular 08 de 2021 con la finalidad de garantizar el desarrollo de idóneo de las solicitudes en los términos establecidos. II TRIMESTRE: Teniendo en cuenta que la meta para este trimestre no se cumplió, la dirección jurídica propone realizar mesas de trabajo con los abogados para recordar los términos de respuesta a los que deben dar lugar a los requerimientos allegados a dirección jurídica. Adicional, se hace necesario recodar a las áreas solicitantes la Circular 08 de 2021 con la finalidad de garantizar el desarrollo de idóneo de las solicitudes en los términos establecidos, así como remitir la documentación completa en los términos correspondientes, en aras de fortalecer que las correcciones sean realizadas acorde a los términos. III TRIMESTRE Concorde con el análisis de datos, se evidencia que no se cumplió la meta propuesta, por lo tanto, se hace necesario recodar a las áreas solicitantes y a los abogados (as) de la Dirección Jurídica, el cumplimiento de la Circular 08 de 2021 con la finalidad de garantizar el desarrollo de idóneo de las solicitudes en los términos establecidos, así como remitir la documentación completa en los términos correspondientes, en aras de fortalecer que las correcciones sean realizadas acorde a los términos. Por otro lado, se dará conocer a las diferentes áreas de la Universidad de Cundinamarca, mediante comunicado, circular o correo masivo, los medios idóneos para la radicación de los diferentes asuntos, con la finalidad de evitar duplicidad de los asuntos y así garantizar un respuesta pronta y efectiva. IV TRIMESTRE: Se hace necesario dar a conocer a las areas solicitantes y a los abogados la Circiular 08 de 2021 con la finalidad de dar garantizar el desarrollo de idoneo de las solicitudes en los terminos establecidos, así como conminar remitir la documentación completa en los términos correspondientes.
J41: RESPONSABLE
J42: =E14 -> Director(a) Jurídica
C45: PERIODO DE EVALUACIÓN
C46: MES | D46: =IF(J23="MENSUAL","ENERO",IF(J23="TRIMESTRAL","MARZO",IF(J23="SEMESTRAL","JUNIO",IF(J23="ANUAL",YEAR(TODAY()),"")))) -> MARZO | E46: =IF(J23="MENSUAL","FEBRERO",IF(J23="TRIMESTRAL","JUNIO",IF(J23="SEMESTRAL","DICIEMBRE",""))) -> JUNIO | F46: =IF(J23="MENSUAL","MARZO",IF(J23="TRIMESTRAL","SEPTIEMBRE","")) -> SEPTIEMBRE | G46: =IF(J23="MENSUAL","ABRIL",IF(J23="TRIMESTRAL","DICIEMBRE","")) -> DICIEMBRE | H46: =IF(J23="MENSUAL","MAYO","") ->  | I46: =IF(J23="MENSUAL","JUNIO","") ->  | J46: =IF(J23="MENSUAL","JULIO","") ->  | K46: =IF(J23="MENSUAL","AGOSTO","") ->  | L46: =IF(J23="MENSUAL","SEPTIEMBRE","") ->  | M46: =IF(J23="MENSUAL","OCTUBRE","") ->  | N46: =IF(J23="MENSUAL","NOVIEMBRE","") ->  | O46: =IF(J23="MENSUAL","DICIEMBRE","") -> 
C47: =G18 -> N° solicitudes atendidas en los términos establecidos (requerimientos jurídicos por Integradoc) *100 | D47: 5 | E47: 6 | F47: 1 | G47: 17
C48: =G19 -> Total de solicitudes contestadas, allegadas como requerimientos jurídicos por Integradoc | D48: 5 | E48: 9 | F48: 6 | G48: 23
C49: VALOR | D49: =IFERROR(IF($E$17=1,D47/D48,IF($E$17=2,D47,"")),"") -> 1 | E49: =IFERROR(IF($E$17=1,E47/E48,IF($E$17=2,E47,"")),"") -> 0.6666666667 | F49: =IFERROR(IF($E$17=1,F47/F48,IF($E$17=2,F47,"")),"") -> 0.1666666667 | G49: =IFERROR(IF($E$17=1,G47/G48,IF($E$17=2,F47,"")),"") -> 0.7391304348 | H49: =IFERROR(IF($E$17=1,H47/H48,IF($E$17=2,H47,"")),"") -> 
C50: META PONDERADA | D50: =IF(AND(N23="ANUAL",J23="MENSUAL"),N17/12,IF(AND(N23="ANUAL",J23="TRIMESTRAL"),N17/4,IF(AND(N23="ANUAL",J23="SEMESTRAL"),N17/2,IF(AND(N23="ANUAL",J23="ANUAL"),N17,IF(AND(N23="SEMESTRAL",J23="MENSUAL"),N17/6,IF(AND(N23="SEMESTRAL",J23="TRIMESTRAL"),N17/2,IF(AND(N23="SEMESTRAL",J23="SEMESTRAL"),N17,IF(AND(N23="SEMESTRAL",J23="ANUAL"),"REVISAR FRECUENCIAS",IF(AND(N23="TRIMESTRAL",J23="MENSUAL"),N17/3,IF(AND(N23="TRIMESTRAL",J23="TRIMESTRAL"),N17,IF(AND(N23="TRIMESTRAL",J23="SEMESTRAL"),"REVISAR FRECUENCIAS",IF(AND(N23="TRIMESTRAL",J23="ANUAL"),"REVISAR FRECUENCIAS",IF(AND(N23="MENSUAL",J23="MENSUAL"),N17,IF(AND(N23="MENSUAL",J23="TRIMESTRAL"),"REVISAR FRECUENCIAS",IF(AND(N23="MENSUAL",J23="SEMESTRAL"),"REVISAR FRECUENCIAS",IF(AND(N23="MENSUAL",J23="ANUAL"),"REVISAR FRECUENCIAS","")))))))))))))))) -> 0.8 | E50: =IF(AND(N23="ANUAL",J23="MENSUAL"),N17/12+D50,IF(AND(N23="ANUAL",J23="TRIMESTRAL"),N17/4+D50,IF(AND(N23="ANUAL",J23="SEMESTRAL"),N17/2+D50,IF(AND(N23="SEMESTRAL",J23="MENSUAL"),N17/6+D50,IF(AND(N23="SEMESTRAL",J23="TRIMESTRAL"),N17/2+D50,IF(AND(N23="SEMESTRAL",J23="SEMESTRAL"),N17,IF(AND(N23="TRIMESTRAL",J23="MENSUAL"),N17/3+D50,IF(AND(N23="TRIMESTRAL",J23="TRIMESTRAL"),N17,IF(AND(N23="MENSUAL",J23="MENSUAL"),N17,""))))))))) -> 0.8 | F50: =IF(AND(N23="ANUAL",J23="MENSUAL"),N17/12+E50,IF(AND(N23="ANUAL",J23="TRIMESTRAL"),N17/4+E50,IF(AND(N23="SEMESTRAL",J23="MENSUAL"),N17/6+E50,IF(AND(N23="SEMESTRAL",J23="TRIMESTRAL"),N17/2,IF(AND(N23="TRIMESTRAL",J23="MENSUAL"),N17/3+E50,IF(AND(N23="TRIMESTRAL",J23="TRIMESTRAL"),N17,IF(AND(N23="MENSUAL",J23="MENSUAL"),N17,""))))))) -> 0.8 | G50: =IF(AND(N23="ANUAL",J23="MENSUAL"),N17/12+F50,IF(AND(N23="ANUAL",J23="TRIMESTRAL"),N17/4+F50,IF(AND(N23="SEMESTRAL",J23="MENSUAL"),N17/6+F50,IF(AND(N23="SEMESTRAL",J23="TRIMESTRAL"),N17/2+F50,IF(AND(N23="TRIMESTRAL",J23="MENSUAL"),N17/3,IF(AND(N23="TRIMESTRAL",J23="TRIMESTRAL"),N17,IF(AND(N23="MENSUAL",J23="MENSUAL"),N17,""))))))) -> 0.8 | H50: =IF(AND($N$23="ANUAL",$J$23="MENSUAL"),$N$17/12+G50,IF(AND(N23="SEMESTRAL",J23="MENSUAL"),N17/6+G50,IF(AND(N23="TRIMESTRAL",J23="MENSUAL"),N17/3+G50,IF(AND(N23="MENSUAL",J23="MENSUAL"),N17,"")))) ->  | I50: =IF(AND($N$23="ANUAL",$J$23="MENSUAL"),$N$17/12+H50,IF(AND(N23="SEMESTRAL",J23="MENSUAL"),N17/6+H50,IF(AND(N23="TRIMESTRAL",J23="MENSUAL"),N17/3+H50,IF(AND(N23="MENSUAL",J23="MENSUAL"),N17,"")))) ->  | J50: =IF(AND($N$23="ANUAL",$J$23="MENSUAL"),$N$17/12+I50,IF(AND(N23="SEMESTRAL",J23="MENSUAL"),N17/6,IF(AND(N23="TRIMESTRAL",J23="MENSUAL"),N17/3,IF(AND(N23="MENSUAL",J23="MENSUAL"),N17,"")))) ->  | K50: =IF(AND($N$23="ANUAL",$J$23="MENSUAL"),$N$17/12+J50,IF(AND(N23="SEMESTRAL",J23="MENSUAL"),N17/6+J50,IF(AND(N23="TRIMESTRAL",J23="MENSUAL"),N17/3+J50,IF(AND(N23="MENSUAL",J23="MENSUAL"),N17,"")))) ->  | L50: =IF(AND($N$23="ANUAL",$J$23="MENSUAL"),$N$17/12+K50,IF(AND(N23="SEMESTRAL",J23="MENSUAL"),N17/6+K50,IF(AND(N23="TRIMESTRAL",J23="MENSUAL"),N17/3+K50,IF(AND(N23="MENSUAL",J23="MENSUAL"),N17,"")))) ->  | M50: =IF(AND($N$23="ANUAL",$J$23="MENSUAL"),$N$17/12+L50,IF(AND(N23="SEMESTRAL",J23="MENSUAL"),N17/6+L50,IF(AND(N23="TRIMESTRAL",J23="MENSUAL"),N17/3,IF(AND(N23="MENSUAL",J23="MENSUAL"),N17,"")))) ->  | N50: =IF(AND($N$23="ANUAL",$J$23="MENSUAL"),$N$17/12+M50,IF(AND(N23="SEMESTRAL",J23="MENSUAL"),N17/6+M50,IF(AND(N23="TRIMESTRAL",J23="MENSUAL"),N17/3+M50,IF(AND(N23="MENSUAL",J23="MENSUAL"),N17,"")))) ->  | O50: =IF(AND($N$23="ANUAL",$J$23="MENSUAL"),$N$17/12+N50,IF(AND(N23="SEMESTRAL",J23="MENSUAL"),N17/6+N50,IF(AND(N23="TRIMESTRAL",J23="MENSUAL"),N17/3+N50,IF(AND(N23="MENSUAL",J23="MENSUAL"),N17,"")))) -> 
C52: NIVEL DE SEGREGACIÓN *
C53: UNIDAD SEGREGADA (Ej. Facultad, Programa Académico, Área) | G53: RESULTADO | K53: ANALISIS DE DATOS SEGREGADO
C54: CONCEPTOS | G54: 1 | K54: SE RECIBIO 1 REQUERIMIENTO EN CUANTO A CONCEPTOS, EL CUAL SE ATENDIERON DENTRO DE LOS TERMINOS DE RESPUESTA DEFINIDOS
C55: ACTAS DE REINICIO, INICIO Y SUSPENSION | G55: 1 | K55: SE RECIBIO 1 REQUERIMIENTO EN CUANTO A ACTAS DE INICIO, EL CUAL SE ATENDIERON DENTRO DE LOS TERMINOS DE RESPUESTA DEFINIDOS
C56: ACTAS LIQUIDACION CONTRATACION PERSONAL ACADEMICA | G56: 1 | K56: SE RECIBIERON 4 REQUERIMIENTOS EN CUANTO A LAS ACTAS LIQUIDACION CONTRATACION PERSONAL ACADEMICO, DE LOS CUALES, 4 SE ATENDIERON DENTRO DE LOS TERMINOS DE RESPUESTA DEFINIDOS
C57: ACUERDOS DE VOLUNTADES (INTERACCIÓN UNIVERSITARIA) | G57: N/A | K57: NO SE RECIBIERON REQUERIMIENTOS EN CUANTO A LOS ACUERDOS DE VOLUNTADES (INTERACCIÓN UNIVERSITARIA).
C58: CONVENIOS | G58: =3/4 -> 0.75 | K58: SE RECIBIERON 4 REQUERIMIENTOS EN CUANTO A CONVENIOS, DE LOS CUALES, 3 SE ATENDIERON DENTRO DE LOS TERMINOS DE RESPUESTA DEFINIDOS
C59: ESTUDIO DE CONVENIENCIA | G59: N/A | K59: NO SE RECIBIERON 0 REQUERIMIENTOS EN CUANTO A ESTUDIOS DE CONVENIENCIA
C60: POLIZAS CONTRATACION PERSONAL ACADEMICA | G60: N/A | K60: NO SE RECIBIERON 0 REQUERIMIENTOS EN CUANTO A POLIZAS CONTRATACION PERSONAL ACADEMICA
C61: RESOLUCIONES | G61: =3/8 -> 0.375 | K61: SE RECIBIERON 8 REQUERIMIENTOS EN CUANTO A RESOLUCIONES, DE LOS CUALES, 3 SE ATENDIERON DENTRO DE LOS TERMINOS DE RESPUESTA DEFINIDOS
C62: REVISION OTRO SI (CONTRATACIÓN) | G62: 1 | K62: SE RECIBIERON 5 REQUERIMIENTOS EN CUANTO A OTRO SI, DE LOS CUALES, SE ATENDIERON DENTRO DE LOS TERMINOS DE RESPUESTA DEFINIDOS
G76: Estratégico | J76: Eficacia
G77: Misional | J77: Eficiencia
G78: Apoyo | J78: Acreditación
G79: Seguimiento, Medición, Análisis y Evaluación | J79: Positiva
G80: Direccionamiento Estratégico | J80: Negativa
G81: Planeación Institucional | J81: Por Unidad Regional
G82: Proyectos Especiales y Relaciones Interinstitucionales | J82: Por Facultad
G83: Sistemas Integrados | J83: Por Programa Académico
G84: Autoevaluación y Acreditación | J84: Por área
G85: Comunicaciones | J85: Por Laboratorio
G86: Formación y Aprendizaje | J86: Otros
G87: Ciencia, Tecnología e Innovación | J87: No Aplica
G88: Interacción Social Universitaria
G89: Bienestar Universitario
G90: Admisiones y Registro
G91: Graduados
G92: Dialogando con el Mundo
G93: Talento Humano
G94: Jurídica
G95: Financiera
G96: Sistemas y Tecnología
G97: Bienes y Servicios
G98: Documental
G99: Apoyo Académico
G100: Control Interno
G101: Control Disciplinario
G102: Servicio de Atención al Ciudadano

Sheet AJU-8
B2: REGRESAR
E5: MACROPROCESO ESTRATÉGICO | M5: CÓDIGO: ESGr027
E6: PROCESO GESTIÓN SISTEMAS INTEGRADOS - CALIDAD | M6: VERSIÓN: 8
E7: MATRIZ DE MEDICIÓN Y SEGUIMIENTO A LOS PROCESOS DE GESTIÓN | M7: VIGENCIA: 2023-07-28
M8: PÁGINA: 1 de 4
C10: FICHA DE INDICADOR
C12: MACROPROCESO | E12: Apoyo | I12: NOMBRE DEL INDICADOR | K12: Eficacia en la defensa judicial de las acciones de tutela en que la Universidad es la accionada
C13: PROCESO GESTIÓN | E13: Jurídica
C14: RESPONSABLE DE MEDICIÓN | E14: Director(a) Jurídica
C16: 1. COMPORTAMIENTO DE INDICADOR
C17: CLASIFICACIÓN DE LA MEDICIÓN | E17: 1 | H17: TIPO DE INDICADOR | J17: Eficacia | L17: META | N17: 0.85
C18: FORMULA | E18: NUMERADOR | G18: No. tutelas ganadas *100 | L18: UNIDAD DE MEDIDA | N18: Porcentaje
E19: DENOMINADOR | G19: Total tutelas accionadas archivadas
C20: TENDENCIA | E20: Positiva | H20: NIVEL DE SEGREGACIÓN * | J20: No Aplica | L20: ESCALA
L21: Deficiente | M21: Aceptable | N21: Bueno | O21: Excelente
L22: 0% - 40,9% | M22: 41% - 60,9% | N22: 61% - 84,9% | O22: >=85%
C23: ORIGEN DE DATOS NUMERADOR | E23: Documento en Excel - AJUF013 | H23: FRECUENCIA DE LA MEDICIÓN | J23: TRIMESTRAL | L23: FRECUENCIA DE RESULTADO | N23: TRIMESTRAL
C24: ORIGEN DE DATOS DENOMINADOR | E24: Documento en Excel - AJUF013
C26: RESULTADOS
J27: ANÁLISIS DE DATOS
J28: I TRIMESTRE: De los datos objeto análisis, se puede concluir que, durante el primer trimestre del 2024, la Dirección Jurídica respondió en términos las acciones de tutela en que la institución fue accionada y logro fallos favorables para la Universidad de Cundinamarca, sin embargo, una de las acciones de tutela se encuentran con fallo desfavorable. Por otro lado, se evidencio que se notificaron 17 acciones de tutela donde solo 15 se encuentran archivadas y dos pendientes del pronunciamiento por parte del ente judicial. II TRIMESTRE: De los datos objeto análisis, se puede concluir que, durante el segundo trimestre del 2024, la Dirección Jurídica respondió en términos las acciones de tutela en que la institución fue accionada y logrando 9 fallos favorables para la Universidad de Cundinamarca, acciones de tutelas que ya se encuentran archivadas. III TRIMESTRE: De los datos objeto análisis, se puede concluir que, durante el tercer trimestre del 2024, la Dirección Jurídica respondió en términos las acciones de tutela en que la institución fue accionada y 7 fallos favorables para la Universidad de Cundinamarca, sin embargo, una de las acciones de tutela se encuentran con fallo desfavorable. IV TRIMESTRE: De los datos objeto análisis, se puede concluir que, durante el cuarto trimestre del 2024, la Dirección Jurídica respondió en términos las acciones de tutela en que la institución fue accionada y logrando 4 fallos favorables para la Universidad de Cundinamarca, sin embargo, una de las acciones de tutela se encuentran con fallo desfavorable.
J34: ACCIÓN FORMULADA
J35: I TRIMESTRE: Teniendo en cuenta que se cumpliò con la meta establecida no aplica la proyeccciòn a estrategias. II TRIMESTRE: De los datos objeto análisis, se puede concluir que, durante el segundo trimestre del 2024, la Dirección Jurídica respondió en términos las acciones de tutela, logrando un cumplimiento del 100% de las tutelas con fallos favorables. III TRIMESTRE: Teniendo en cuenta que se cumpliò con la meta establecida no aplica la proyeccciòn a estrategias. IV TRIMESTRE: De los datos objeto análisis, se puede concluir que, durante el cuarto trimestre del 2024, la Dirección Jurídica respondió en términos las acciones de tutela, logrando un cumplimiento del 100% de las tutelas con fallos favorables.
J41: RESPONSABLE
J42: =E14 -> Director(a) Jurídica
C45: PERIODO DE EVALUACIÓN
C46: MES | D46: =IF(J23="MENSUAL","ENERO",IF(J23="TRIMESTRAL","MARZO",IF(J23="SEMESTRAL","JUNIO",IF(J23="ANUAL",YEAR(TODAY()),"")))) -> MARZO | E46: =IF(J23="MENSUAL","FEBRERO",IF(J23="TRIMESTRAL","JUNIO",IF(J23="SEMESTRAL","DICIEMBRE",""))) -> JUNIO | F46: =IF(J23="MENSUAL","MARZO",IF(J23="TRIMESTRAL","SEPTIEMBRE","")) -> SEPTIEMBRE | G46: =IF(J23="MENSUAL","ABRIL",IF(J23="TRIMESTRAL","DICIEMBRE","")) -> DICIEMBRE | H46: =IF(J23="MENSUAL","MAYO","") ->  | I46: =IF(J23="MENSUAL","JUNIO","") ->  | J46: =IF(J23="MENSUAL","JULIO","") ->  | K46: =IF(J23="MENSUAL","AGOSTO","") ->  | L46: =IF(J23="MENSUAL","SEPTIEMBRE","") ->  | M46: =IF(J23="MENSUAL","OCTUBRE","") ->  | N46: =IF(J23="MENSUAL","NOVIEMBRE","") ->  | O46: =IF(J23="MENSUAL","DICIEMBRE","") -> 
C47: =G18 -> No. tutelas ganadas *100 | D47: 14 | E47: 9 | F47: 7 | G47: 4
C48: =G19 -> Total tutelas accionadas archivadas | D48: 15 | E48: 9 | F48: 7 | G48: 4
C49: VALOR | D49: =IFERROR(IF($E$17=1,D47/D48,IF($E$17=2,D47,"")),"") -> 0.9333333333 | E49: =IFERROR(IF($E$17=1,E47/E48,IF($E$17=2,E47,"")),"") -> 1 | F49: =IFERROR(IF($E$17=1,F47/F48,IF($E$17=2,F47,"")),"") -> 1 | G49: =IFERROR(IF($E$17=1,G47/G48,IF($E$17=2,F47,"")),"") -> 1 | H49: =IFERROR(IF($E$17=1,H47/H48,IF($E$17=2,H47,"")),"") ->  | I49: =IFERROR(IF($E$17=1,I47/I48,IF($E$17=2,I47,"")),"") -> 
C50: META PONDERADA | D50: =IF(AND(N23="ANUAL",J23="MENSUAL"),N17/12,IF(AND(N23="ANUAL",J23="TRIMESTRAL"),N17/4,IF(AND(N23="ANUAL",J23="SEMESTRAL"),N17/2,IF(AND(N23="ANUAL",J23="ANUAL"),N17,IF(AND(N23="SEMESTRAL",J23="MENSUAL"),N17/6,IF(AND(N23="SEMESTRAL",J23="TRIMESTRAL"),N17/2,IF(AND(N23="SEMESTRAL",J23="SEMESTRAL"),N17,IF(AND(N23="SEMESTRAL",J23="ANUAL"),"REVISAR FRECUENCIAS",IF(AND(N23="TRIMESTRAL",J23="MENSUAL"),N17/3,IF(AND(N23="TRIMESTRAL",J23="TRIMESTRAL"),N17,IF(AND(N23="TRIMESTRAL",J23="SEMESTRAL"),"REVISAR FRECUENCIAS",IF(AND(N23="TRIMESTRAL",J23="ANUAL"),"REVISAR FRECUENCIAS",IF(AND(N23="MENSUAL",J23="MENSUAL"),N17,IF(AND(N23="MENSUAL",J23="TRIMESTRAL"),"REVISAR FRECUENCIAS",IF(AND(N23="MENSUAL",J23="SEMESTRAL"),"REVISAR FRECUENCIAS",IF(AND(N23="MENSUAL",J23="ANUAL"),"REVISAR FRECUENCIAS","")))))))))))))))) -> 0.85 | E50: =IF(AND(N23="ANUAL",J23="MENSUAL"),N17/12+D50,IF(AND(N23="ANUAL",J23="TRIMESTRAL"),N17/4+D50,IF(AND(N23="ANUAL",J23="SEMESTRAL"),N17/2+D50,IF(AND(N23="SEMESTRAL",J23="MENSUAL"),N17/6+D50,IF(AND(N23="SEMESTRAL",J23="TRIMESTRAL"),N17/2+D50,IF(AND(N23="SEMESTRAL",J23="SEMESTRAL"),N17,IF(AND(N23="TRIMESTRAL",J23="MENSUAL"),N17/3+D50,IF(AND(N23="TRIMESTRAL",J23="TRIMESTRAL"),N17,IF(AND(N23="MENSUAL",J23="MENSUAL"),N17,""))))))))) -> 0.85 | F50: =IF(AND(N23="ANUAL",J23="MENSUAL"),N17/12+E50,IF(AND(N23="ANUAL",J23="TRIMESTRAL"),N17/4+E50,IF(AND(N23="SEMESTRAL",J23="MENSUAL"),N17/6+E50,IF(AND(N23="SEMESTRAL",J23="TRIMESTRAL"),N17/2,IF(AND(N23="TRIMESTRAL",J23="MENSUAL"),N17/3+E50,IF(AND(N23="TRIMESTRAL",J23="TRIMESTRAL"),N17,IF(AND(N23="MENSUAL",J23="MENSUAL"),N17,""))))))) -> 0.85 | G50: =IF(AND(N23="ANUAL",J23="MENSUAL"),N17/12+F50,IF(AND(N23="ANUAL",J23="TRIMESTRAL"),N17/4+F50,IF(AND(N23="SEMESTRAL",J23="MENSUAL"),N17/6+F50,IF(AND(N23="SEMESTRAL",J23="TRIMESTRAL"),N17/2+F50,IF(AND(N23="TRIMESTRAL",J23="MENSUAL"),N17/3,IF(AND(N23="TRIMESTRAL",J23="TRIMESTRAL"),N17,IF(AND(N23="MENSUAL",J23="MENSUAL"),N17,""))))))) -> 0.85 | H50: =IF(AND($N$23="ANUAL",$J$23="MENSUAL"),$N$17/12+G50,IF(AND(N23="SEMESTRAL",J23="MENSUAL"),N17/6+G50,IF(AND(N23="TRIMESTRAL",J23="MENSUAL"),N17/3+G50,IF(AND(N23="MENSUAL",J23="MENSUAL"),N17,"")))) ->  | I50: =IF(AND($N$23="ANUAL",$J$23="MENSUAL"),$N$17/12+H50,IF(AND(N23="SEMESTRAL",J23="MENSUAL"),N17/6+H50,IF(AND(N23="TRIMESTRAL",J23="MENSUAL"),N17/3+H50,IF(AND(N23="MENSUAL",J23="MENSUAL"),N17,"")))) ->  | J50: =IF(AND($N$23="ANUAL",$J$23="MENSUAL"),$N$17/12+I50,IF(AND(N23="SEMESTRAL",J23="MENSUAL"),N17/6,IF(AND(N23="TRIMESTRAL",J23="MENSUAL"),N17/3,IF(AND(N23="MENSUAL",J23="MENSUAL"),N17,"")))) ->  | K50: =IF(AND($N$23="ANUAL",$J$23="MENSUAL"),$N$17/12+J50,IF(AND(N23="SEMESTRAL",J23="MENSUAL"),N17/6+J50,IF(AND(N23="TRIMESTRAL",J23="MENSUAL"),N17/3+J50,IF(AND(N23="MENSUAL",J23="MENSUAL"),N17,"")))) ->  | L50: =IF(AND($N$23="ANUAL",$J$23="MENSUAL"),$N$17/12+K50,IF(AND(N23="SEMESTRAL",J23="MENSUAL"),N17/6+K50,IF(AND(N23="TRIMESTRAL",J23="MENSUAL"),N17/3+K50,IF(AND(N23="MENSUAL",J23="MENSUAL"),N17,"")))) ->  | M50: =IF(AND($N$23="ANUAL",$J$23="MENSUAL"),$N$17/12+L50,IF(AND(N23="SEMESTRAL",J23="MENSUAL"),N17/6+L50,IF(AND(N23="TRIMESTRAL",J23="MENSUAL"),N17/3,IF(AND(N23="MENSUAL",J23="MENSUAL"),N17,"")))) ->  | N50: =IF(AND($N$23="ANUAL",$J$23="MENSUAL"),$N$17/12+M50,IF(AND(N23="SEMESTRAL",J23="MENSUAL"),N17/6+M50,IF(AND(N23="TRIMESTRAL",J23="MENSUAL"),N17/3+M50,IF(AND(N23="MENSUAL",J23="MENSUAL"),N17,"")))) ->  | O50: =IF(AND($N$23="ANUAL",$J$23="MENSUAL"),$N$17/12+N50,IF(AND(N23="SEMESTRAL",J23="MENSUAL"),N17/6+N50,IF(AND(N23="TRIMESTRAL",J23="MENSUAL"),N17/3+N50,IF(AND(N23="MENSUAL",J23="MENSUAL"),N17,"")))) -> 
C52: NIVEL DE SEGREGACIÓN *
C53: UNIDAD SEGREGADA (Ej. Facultad, Programa Académico, Área) | G53: RESULTADO | K53: ANALISIS DE DATOS SEGREGADO
G67: Estratégico | J67: Eficacia
G68: Misional | J68: Eficiencia
G69: Apoyo | J69: Acreditación
G70: Seguimiento, Medición, Análisis y Evaluación | J70: Positiva
G71: Direccionamiento Estratégico | J71: Negativa
G72: Planeación Institucional | J72: Por Unidad Regional
G73: Proyectos Especiales y Relaciones Interinstitucionales | J73: Por Facultad
G74: Sistemas Integrados | J74: Por Programa Académico
G75: Autoevaluación y Acreditación | J75: Por área
G76: Comunicaciones | J76: Por Laboratorio
G77: Formación y Aprendizaje | J77: Otros
G78: Ciencia, Tecnología e Innovación | J78: No Aplica
G79: Interacción Social Universitaria
G80: Bienestar Universitario
G81: Admisiones y Registro
G82: Graduados
G83: Dialogando con el Mundo
G84: Talento Humano
G85: Jurídica
G86: Financiera
G87: Sistemas y Tecnología
G88: Bienes y Servicios
G89: Documental
G90: Apoyo Académico
G91: Control Interno
G92: Control Disciplinario
G93: Servicio de Atención al Ciudadano

Sheet ACTUALIZACIONES
C2: MACROPROCESO ESTRATÉGICO | E2: CÓDIGO: ESGr027
C3: PROCESO GESTIÓN SISTEMAS INTEGRADOS - CALIDAD | E3: VERSIÓN: 8
C4: MATRIZ DE MEDICIÓN Y SEGUIMIENTO A LOS PROCESOS DE GESTIÓN | E4: VIGENCIA: 2023-07-28
E5: PÁGINA: 4 de 4
B7: CONTROL DE ACTUALIZACIONES
B8: FECHA | C8: DESCRIPCIÓN DE LA ACTUALIZACIÓN | D8: RESPONSABLE | E8: CARGO
B9: 2022-06-18 | C9: Oportunidad en los términos de respuesta frente a los requerimientos jurídicos (Integradoc) segundo Trimestre 2022 | D9: Manuel David Macchi Álvarez | E9: Asesor Jurídico
B10: 2022-06-18 | C10: Proceso jurídico en recuperación de cartera | D10: Manuel David Macchi Álvarez | E10: Asesor Jurídico
B11: 2022-06-18 | C11: Oportunidad de respuesta en revisión de términos de referencia y minuta de contratación Publico-Privada | D11: Manuel David Macchi Álvarez | E11: Asesor Jurídico
B12: 2022-06-18 | C12: Oportunidad de respuesta en revisión minuta y garantía de contratación Directa | D12: Manuel David Macchi Álvarez | E12: Asesor Jurídico
B13: 2022-10-14 | C13: Oportunidad en los términos de respuesta frente a los requerimientos jurídicos (Integradoc) segundo Trimestre 2022 | D13: Manuel David Macchi Álvarez | E13: Asesor Jurídico
B14: 2023-03-30 | C14: AJU-4: Se ajusta la fórmula en cuanto al denominador así: de Total de solicitudes recibidas a Total de solicitudes cerradas AJU-5: El indicador cumplió la meta establecida al último corte del año 2022, se incrementará de un 80% a un 85% para este 2023, adicional, se ajusta la fórmula en el denominador como se detalla a continuación: Total de solicitudes recibidas a Total de solicitudes cerradas AJU-7: Se ajusta la fórmula, en específico el denominador de la siguiente manera: pasa de Total de solicitudes allegadas como requerimientos jurídicos por Integradoc a Total de solicitudes contestadas, allegadas como requerimientos jurídicos por Integradoc. AJUP-8: Se incorpora un nuevo indicador Eficacia en la defensa judicial de las acciones de tutela en que la Universidad es la accionada La fórmula para medir es: (No. tutelas ganadas/Total tutelas accionadas archivadas)*100 | D14: Jheny Lucia Cardona Ricard | E14: Directora Jurídica
B15: 2023-06-01 | C15: AJU-6: Se ajusta la fórmula del indicador de la siguiente manera: Valor recuperado de cartera*100/ Valor total en Cartera. | D15: Jheny Lucia Cardona Ricard | E15: Directora Jurídica
B16: 2023-08-16 | C16: Se incorpora planificación de actividades para cada Objetivo Específico | D16: Jheny Lucia Cardona Ricard | E16: Directora Jurídica
B17: 2024-02-27 | C17: AJU-4 Subir la meta del 80% al 85% AJU-5 Se mantiene la meta en el 85% atendiendo a las novedades presentadas en la contratación del equipo de trabajo. AJU-6 Pendiente, Se le envía reiteración a la comisión de gestión la solicitud de desactivación del indicador. AJU-7 Se mantiene la meta del 80% debido a las novedades de contratación. AJU-8 Sube la meta del 80% al 85% | D17: Jheny Lucia Cardona Ricard | E17: Directora Jurídica
B18: 2024-07-19 | C18: AJU-6 Se ajusta la fórmula del indicador de la siguiente manera: de "Valor Recuperado de cartera*100/Valor Total en Cartera" a "Casos gestionados y con seguimiento*100/Total de casos en/para cobro jurídico (a satisfacción de criterios)". Adicional, se actualiza la frecuencia de medición a Semestral y frecuencia de resultado a Semestral. | D18: Laura Nathaly Ortiz Becerra | E18: Directora Jurídica
B26: Diagonal 18 No. 20-29 Fusagasugá – Cundinamarca Teléfono (601) 8281483 Línea Gratuita 018000180414 www.ucundinamarca.edu.co E-mail: info@ucundinamarca.edu.co NIT: 890.680.062-2
B29: Documento controlado por el Sistema de Gestión de la Calidad Asegúrese que corresponde a la última versión consultando el Portal Institucional

Sheet ITEM (hidden)
A1: MENSUAL | C1: NÚMERO
A2: TRIMESTRAL | C2: PORCENTAJE
A3: SEMESTRAL
A4: ANUAL
